{"text_format":"1","workbook":"xlsx","n_sheets":7,"sheets":["Read Me","Instructions","CFP Quantification","Customized Embodied EF","Customized Fuel EF","Customized Fuel LHV","Default EF&LHV References "],"not_rendered":{"charts":0,"images":1,"macros":1,"external_links":0,"defined_names":135,"comments":2,"pivot_tables":0},"unopened":[],"bounds":{"document_bytes":16777216,"sheet_cells":100000,"rows_first":2000,"rows_last":500,"rows_between":2000,"halvings":0,"cell_chars":16384,"cell_head_chars":4096},"cells_cut":0,"cells_raw":0,"read":"whole","date_system":"1900"}

{"sheet":"Read Me","index":0,"n_rows":40,"n_cols":4,"rows_kept":40,"cut":false,"hidden":false,"merged":[[24,1,24,7],[21,1,21,7],[22,1,22,7],[23,1,23,7],[0,1,0,7],[2,1,2,7],[6,3,6,6],[18,1,18,7],[19,1,19,7],[20,1,20,7]]}
[null,"CFP Quantification Tool - Precast Concrete"]
[]
[null,"Colour Codes, Notes & FAQ"]
[]
[]
[null,"Tool Sections :"]
[null,"G : General Information Section ","=","General information of the certifying Precast Concrete product(s) that required user input"]
[null,"A : Assessment Section","=","Calculation of the carbon emission for each  Precast Concrete product"]
[null,"P : Performance Section ","=","Summary of each of the Precast Concrete product emission performance "]
[]
[null,"Colour Code of Cells :",null,"Colour Code of Sheets :"]
[null,"Input cell",null,"Instruction"]
[null,"Calculated value",null,"Calculation Tool"]
[null,"Information ( Title , units, item nos. etc)",null," Factor for Calculation"]
[null,"Not used ",null,"Default Factor References"]
[]
[]
["Notes to users:"]
["-","Users should refer to the relevant Assessment Guide issued by the Construction Industry Council's (CIC) for the principles, requirements, and guides for the quantification and reporting the carbon footprint of products (CFP) under the CIC Green Product Certification.  Any manufacturers applying for the CIC's  Green Product Certification should comply with all relevant requirements on CFP quantification stated in the Assessment Guide."]
["-","The goal of carrying out a CFP quantification is to calculate the potential contribution of a particular product to global warming expressed as CO2e by quantifying all significant GHG emissions and removals over the product’s life cycle."]
["- ","This CFP quantification tool is currently applicable to three product categories according to their individual functions,  (i) structural precast concrete; (ii) façade precast concrete; (iii) architectural / internal building precast concrete as described in the Assessment Guide. The tool is developed with reference to ISO 14067:2018."]
["- ","According to the principles of the LCA methodology provided in ISO 14040:2006 with Amendment 1:2020 and ISO 14044:2006 with Amendment 2:2020, the quantification and reporting of a CFP should be relevant, complete, consistent, accurate and transparent. The assessment of carbon footprint of Precast Concrete under the CIC Green Product Certification shall be based on a “cradle-to-gate” approach, covering all GHG emissions and removals arising from raw material acquisition through production, and transportation of the raw materials to the plant, and manufacturing processes. Please note that the GHG emission from transportation of Precast Concrete to the border of HK (Module A4) is excluded from the system boundary of this assessment. The user input for A4 emission is provided for reporting purpose only and does not affect the benchmarking and rating of the certified product."]
["-","Users are required to complete the worksheet \"CFP Quantification\" to access the product's carbon footprint. Guides are provided in the \"Instruction\" worksheet. Please ensure ALL input cells (i.e. empty light green cells) in the \"CFP Quantification\" are filled out. User shall fill the worksheet from top to bottom."]
["-","All the units of \"t/reporting period\" in this tool refers to \"tonne/year\", where 1 tonne = 1000 kg."]
["-","If \"Default\" factor is selected, Applicants shall review the references of the default values to ensure their applicability prior to use.\n\nApplicants are encouraged to prioritize the use of specific life cycle data. In cases where such data is not readily accessible, data from national databases, regional databases, or other recognized sources may be utilized. "]
["Frequently Asked Questions:"]
["-","Question: \"Why do many self-calculating cells in my worksheet display a calculation error (for example, \"#VALUE\" displayed)?"]
[null,"Answer: \"#VALUE\" appears as long as some necessary input cells have not been completed (i.e., some cells have been left blank)."]
["-","Question: \"Why do many self-calculating cells in my worksheet display a \"Factor error\" ?"]
[null,"Answer: \"Factor error\" appears as the energy commodity / material was not found in the factor sheets."]
[]
[null,"© 2025 All rights reserved by CIC"]
[]
[null,"Scheme Owned by Construction Industry Council"]
[null,"38/F, COS Centre, 56 Tsun Yip Street, Kwun Tong, Kowloon, Hong Kong"]
[]
[null,"Operated by Hong Kong Green Building Council"]
[null,"1/F, Jockey Club Environmental Building, 77 Tat Chee Avenue, Kowloon Tong, Hong Kong"]
[null,"Phone: +852 3994 8888"]
[null,"Email: cicgpc@hkgbc.org.hk"]

{"sheet":"Instructions","index":1,"n_rows":89,"n_cols":18,"rows_kept":89,"cut":false,"hidden":false,"merged":[[27,12,27,17],[35,8,36,8],[35,10,36,11],[38,8,39,8],[38,10,39,11],[54,5,57,6],[54,8,57,8],[48,12,48,17],[49,12,49,17],[54,10,54,11],[55,10,55,11],[56,10,56,11],[42,12,42,17],[43,1,43,17],[44,2,44,17],[30,12,33,17],[57,10,57,11],[52,2,52,3],[52,5,52,8],[52,10,52,11],[53,2,53,3],[53,5,53,6],[53,7,53,8],[48,6,48,8],[77,10,77,11],[70,10,70,11],[71,10,71,11],[60,7,62,8],[60,10,60,11],[61,10,61,11],[62,10,62,11],[63,2,63,8],[63,10,63,11],[58,2,58,8],[58,10,58,11],[59,2,59,3],[59,5,59,8],[77,12,77,17],[60,12,62,17],[66,5,67,5],[66,6,67,6],[66,7,67,8],[70,5,71,5],[70,6,71,6],[70,7,71,8],[59,10,59,11],[72,10,72,11],[67,10,67,11],[68,2,68,3],[68,5,68,8],[68,10,68,11],[69,7,69,8],[64,2,64,3],[64,5,64,8],[64,10,64,11],[65,7,65,8],[66,10,66,11],[81,1,88,1],[81,10,81,11],[82,5,82,8],[82,10,82,11],[83,5,83,8],[83,10,83,11],[84,10,84,11],[85,5,85,8],[85,10,85,11],[86,5,86,8],[86,10,86,11],[87,10,87,11],[88,10,88,11],[78,2,78,3],[78,5,78,7],[78,10,78,11],[80,2,80,8],[80,10,80,11],[73,2,73,3],[73,5,73,7],[73,10,73,11],[74,1,78,1],[74,10,74,11],[75,2,75,8],[75,10,75,11],[76,2,76,3],[76,5,76,8],[77,5,77,8],[45,1,73,1],[45,2,45,17],[46,2,46,8],[46,10,46,11],[47,2,47,3],[47,5,47,8],[47,10,47,11],[72,2,72,3],[72,5,72,8],[48,10,48,11],[49,6,49,8],[49,10,49,11],[50,10,50,11],[51,10,51,11],[40,1,42,1],[40,2,40,8],[40,10,40,11],[41,10,41,11],[42,10,42,11],[32,10,32,11],[33,10,33,11],[34,5,34,8],[37,5,37,8],[32,5,33,5],[26,1,28,1],[26,2,26,8],[26,10,26,11],[27,10,27,11],[28,10,28,11],[29,1,39,1],[29,2,29,8],[29,10,29,11],[30,10,30,11],[31,10,31,11],[24,5,24,7],[24,8,24,9],[25,5,25,7],[25,8,25,9],[22,5,22,7],[22,8,22,9],[23,5,23,7],[23,8,23,9],[18,1,25,1],[18,2,18,17],[19,5,19,7],[19,8,19,9],[20,5,20,7],[20,8,20,9],[21,5,21,7],[21,8,21,9],[19,10,25,17],[9,5,9,9],[10,5,10,9],[11,5,11,7],[11,10,11,17],[0,0,0,17],[2,8,2,9],[3,8,3,9],[5,1,6,1],[5,2,6,17],[7,1,17,1],[7,2,7,9],[7,10,7,17],[8,5,8,9],[8,10,10,17],[12,10,17,17],[12,6,17,7],[12,8,17,8],[12,9,17,9]]}
["CFP Quantification - Precast Concrete"]
["Product category 1: Structural precast concrete"]
["Product category 2: Façade precast concrete","Date of latest update",null,null,null,null,null,null,"2025-03-24"]
["Product category 3: Architectural / Internal building precast concrete ","Reporting period",null,null,null,null,null,null,"Please provide corresponding information"]
[]
[null,"G","GENERAL INFORMATION"]
[]
[null,"G1","G1 General Plant Information",null,null,null,null,null,null,null,"Description"]
[null,null,{"$f":"LEFT($C$8,2)&\".\"","v":"G1."},1,null,"Plant",null,null,null,null,"Please provide corresponding information"]
[null,null,"G1.",2,null,"Company"]
[null,null,"G1.",3,null,"Country / Region"]
[null,null,null,null,null,"Product category",null,null,"Concrete grade","Reinforcing bar grade","Product name"]
[null,null,"G1.",4,null,"Product 1","Please select product category:\n1) Product category 1: Structural precast concrete\n2) Product category 2: Façade precast concrete\n3) Product category 3: Architectural / Internal building precast concrete ",null,"Please select concrete grade used in the precast concrete product","Please select reinforcing grade used in the precast concrete product","Please provide corresponding product information (name, strength grade, etc.) to be applied under this category.\nExample: C45 Precast Concrete Slab, C80 Precast Concrete PHC Pile"]
[null,null,"G1.",5,null,"Product 2"]
[null,null,"G1.",6,null,"Product 3"]
[null,null,"G1.",7,null,"Product 4"]
[null,null,"G1.",8,null,"Product 5"]
[null,null,"G1.",9,null,"Product 6"]
[null,"G2","G2 System Boundary"]
[null,null,{"$f":"LEFT($C$19,2)&\".\"","v":"G2."},1,null,"Raw Material extraction and upstream production",null,null,"[yes, no or n.a.]",null,"\"Yes\" means that the GHG emissions arising from the process are reported.\n\"No\" means that the associated data are not reported. Please provide explanation in a note in the cell for why \"No\" was selected.\n\"n.a.\" (not applicable) means that emissions are never generated from this source, or the source does not exist at this plant."]
[null,null,"G2.",2,null,"Off-site transportation of raw materials to manufacturing plant",null,null,"[yes, no or n.a.]"]
[null,null,"G2.",3,null,"Product manufacturing - stationary combustion",null,null,"[yes, no or n.a.]"]
[null,null,"G2.",4,null,"Product manufacturing - mobile combustion ",null,null,"[yes, no or n.a.]"]
[null,null,"G2.",5,null,"Indirect emission from purchased energy ",null,null,"[yes, no or n.a.]"]
[null,null,"G2.",6,null,"Off-site transportation of  product to border of HK [for reference only, excluded from assessment boundary]",null,null,"[yes, no or n.a.]"]
[null,null,"G2.",7,null,"(add other processes as appropriate)",null,null,"[yes, no or n.a.]"]
[null,"G3","G3 Precast Concrete Production",null,null,null,null,null,null,"unit","Total",null,"Product 1","Product 2","Product 3","Product 4","Product 5","Product 6"]
[null,null,{"$f":"LEFT($C$27,2)&\".\"","v":"G3."},1,null,"Precast concrete production in weight",null,null,null,"[t/reporting period]",null,null,"Quantity in weight of each product produced. If there are more than 6 products within any category, feel free to add additional columns as needed. To add more products, simply copy the entire columns of the last category and insert them between/after the last product column."]
[null,null,{"$f":"LEFT($C$27,2)&\".\"","v":"G3."},2,null,"Proportion",null,null,null,"%"]
[null,"G4","G4 Raw Materials Used to Produce Precast Concrete",null,null,null,null,null,null,"unit","Total",null,"Product 1","Product 2","Product 3","Product 4","Product 5","Product 6"]
[null,null,{"$f":"LEFT($C$30,2)&\".\"","v":"G4."},1,null,"Reinforcing bar","Offsite produced",null,null,"[t/reporting period]",null,null,"Please input the consumption of materials required for the production of each product.\n\nApplicant shall note that the consumption of concrete shall be reported in volume basis, other raw materials shall reported in mass basis.\n\nPlease exclude raw materials of concrete, (e.g. aggregate, cement, admixtures, and water, etc) within Section G4, as these aspects have been integrated in the Concrete."]
[null,null,"G4.",2,null,"Concrete","Please select the concrete mixing method: 1) On-site mixing OR 2) Offsite mixed / Ready mixed",null,null,"[m3/reporting period]"]
[null,null,"G4.",3,null,"Applicant can add raw materials, if applicable.\n\nPlease exclude raw materials of concrete, (e.g. aggregate, cement, admixtures, and water, etc) within Section G4, as these aspects have been integrated in the Concrete.\n\nApplicants shall include customized raw materials for calculation purposes in the worksheet titled \"Customized Embodied EF\" ","Others, if applicable",null,null,"[t/reporting period]"]
[null,null,"G4.",4,null,null,"Others, if applicable",null,null,"[t/reporting period]"]
[null,null,"G4.",5,null,"Product manufacturing  (stationary combustion sources NOT covered in concrete manufacturing processes)"]
[null,null,"G4.",{"$f":"D35","v":5},".1","Stationary combustion source",null,"Energy commodity :","Please select the appropriate type of energy commodity.\n\nPlease exclude the energy commodity of concrete manufacturing to avoid double counting.\n\nApplicants are permitted to include customized energy commodities for calculation purposes in the worksheets titled \"Customized Embodied EF,\" \"Customized Fuel EF,\" and \"Customized Fuel LHV.\" \n\nIf additional energy commodities need to be included, kindly insert more rows as necessary.","[t/reporting period]","please fill the total consumption energy commodity for all products"]
[null,null,"G4.",{"$f":"D36","v":5},".2","Stationary combustion source",null,"Energy commodity :",null,"[t/reporting period]"]
[null,null,"G4.",6,null,"On-site transportation"]
[null,null,"G4.",{"$f":"D38","v":6},".1","Mobile combustion source",null,"Energy commodity :","Please select the appropriate type of energy commodity.\n\nPlease exclude the energy commodity of concrete manufacturing to avoid double counting.\n\nApplicants are permitted to include customized energy commodities for calculation purposes in the worksheets titled \"Customized Embodied EF,\" \"Customized Fuel EF,\" and \"Customized Fuel LHV.\" \n\nIf additional energy commodities need to be included, kindly insert more rows as necessary.","[t/reporting period]","please fill the total consumption energy commodity for all products"]
[null,null,"G4.",{"$f":"D39","v":6},".2","Mobile combustion source",null,"Energy commodity :",null,"[t/reporting period]"]
[null,"G5","G5. Power Consumption of Purchased Energy",null,null,null,null,null,null,"unit","Total",null,"Product 1","Product 2","Product 3","Product 4","Product 5","Product 6"]
[null,null,{"$f":"LEFT($C$41,2)&\".\"","v":"G5."},1,null,"Consumption of electricity produced externally",null,null,null,"[MWh/reporting period]","Please enter the total consumption of electricity produced externally "]
[null,null,{"$f":"LEFT($C$41,2)&\".\"","v":"G5."},2,null,"CO2e per unit of electricity produced externally",null,null,null,"[kg CO2e/MWh]","Please enter the specific carbon emission factor for electricity produced externally. \n\nApplicants may obtain the carbon emission factor from their power supplier or from relevant national authorities."]
[]
[null,"A","ASSESSMENT"]
[null,"A1 - A3","PROJECT LIFE CYCLE STAGE : A1 RAW MATERIAL EXTRACTION AND UPSTREAM PRODUCTION,  A2 OFF-SITE TRANSPORTATION OF RAW MATERIALS TO MANUFACTURING PLANT, A3 PRODUCT MANUFACTURING AND FABRICATION (WITHOUT WASTAGE)"]
[null,null,"A1.1 CO2e EMISSIONS FROM BOUGHT RAW MATERIALS & BOUGHT ENERGY COMMODITY",null,null,null,null,null,null,"unit","Total",null,"Product 1","Product 2","Product 3","Product 4","Product 5","Product 6"]
[null,null,"A1.1.1",null,null,"CO2e from bought raw materials",null,null,null,"[t CO2e/reporting period]"]
[null,null,null,{"$f":"C48","v":"A1.1.1"},".1",{"$f":"F31","v":"Reinforcing bar"},"CO2e in A1 - A3 calculated using either \n1) CIC's  CFP Quantification Tool - Reinforcing Bar & Structural Steel [Sum of sections P1.1-P.1.3 of CFP tool],  OR \n2) EPD / CFP report with 3rd party verification for reinforcing bars utilized",null,null,"[t CO2e/reporting period]",null,null,"Please fill the A1 - A3 emission from using reinforcing bar. The applicant are \nthe emission can be calculated using either \n1) CIC's  CFP Quantification Tool - Reinforcing Bar & Structural Steel,  OR \n2) EPD / CFP report with 3rd party verification for reinforcing bars utilized\n\nIf CIC's CFP Quantification Tool - Reinforcing Bar & Structural Steel is used, please refer to section P1 of the tool for each product."]
[null,null,null,{"$f":"D49","v":"A1.1.1"},".2",{"$f":"F32","v":"Concrete"},"CO2e in A1 - A3 calculated using either \n1) CIC's  CFP Quantification Tool - Ready-mixed Concrete [Sum of sections P1.1-P.1.3 of CFP tool],  OR \n2) EPD / CFP report with 3rd party verification for concrete utilized",null,null,"[t CO2e/reporting period]",null,null,"Please fill the A1 - A3 emission from using concrete. The applicant are \nthe emission can be calculated using either \n1) CIC's  CFP Quantification Tool - Ready-mixed Concrete,  OR \n2) EPD / CFP report with 3rd party verification for concrete utilized\n\nIf CIC's CFP Quantification Tool - Ready-mixed Concrete is used, please refer to section P1 of the tool for each product."]
[null,null,null,{"$f":"D49","v":"A1.1.1"},".3",null,"CO2e calculated by customized CO2e factors as specified in worksheet \"Customized Embodied EF\"",null,null,"[t CO2e/reporting period]"]
[null,null,null,{"$f":"D50","v":"A1.1.1"},".4",null,"CO2e calculated by customized CO2e factors as specified in worksheet \"Customized Embodied EF\"",null,null,"[t CO2e/reporting period]"]
[null,null,"A1.1.2",null,null,"CO2e from bought energy commodity",null,null,null,"[t CO2e/reporting period]"]
[null,null,null,null,null,"Adopting CO2e Factors ",null,"[Please insert additional rows if more energy commodities are included]"]
[null,null,null,{"$f":"C53","v":"A1.1.2"},".1","Select the type of embodied EF for calculation:\n1) Default \n2) Customized\n\nIf \"Customized\" is selected, please enter / add customized EF for each of the product under worksheet \"Customized Embodied EF\".\n\nIf \"Default\" is selected, Applicants shall review the references of the default values to ensure their applicability prior to use.\n\nApplicants are encouraged to prioritize the use of specific life cycle data. In cases where such data is not readily accessible, data from national databases, regional databases, or other recognized sources may be utilized. ",null,{"$f":"H39","v":"Energy commodity :"},"Please copy energy commodity from G4.5 to G4.6.\n\nPlease insert additional rows if more energy commodities are included","[t CO2e/reporting period]"]
[null,null,null,{"$f":"D55","v":"A1.1.2"},".2",null,null,{"$f":"H40","v":"Energy commodity :"},null,"[t CO2e/reporting period]"]
[null,null,null,{"$f":"D56","v":"A1.1.2"},".3",null,null,{"$f":"H56","v":"Energy commodity :"},null,"[t CO2e/reporting period]"]
[null,null,null,{"$f":"D57","v":"A1.1.2"},".4",null,null,{"$f":"H57","v":"Energy commodity :"},null,"[t CO2e/reporting period]"]
[null,null,"A2.1 CO2e EMISSIONS FROM OFF-SITE TRANSPORTATION OF RAW MATERIAL TO MANUFACTURING PLANT",null,null,null,null,null,null,"unit","Total",null,"Product 1","Product 2","Product 3","Product 4","Product 5","Product 6"]
[null,null,"A2.1.1",null,null,"CO2e from off-site transportation of raw material to manufacturing plant"]
[null,null,null,{"$f":"C60","v":"A2.1.1"},".1",{"$f":"F49","v":"Reinforcing bar"},"from steel plant to precast concrete plant","CO2e calculated using either \n1) WRI & WBCSD's protocol OR \n2) EPD & EMSD's carbon audit tool",null,"[t CO2e/reporting period]",null,null,"Please enter the GHG emission from stage A2 (from off-site transportation of raw material to manufacturing plant) for each of the product. \n\nGHG emission can be calculated by required information such as mode of transport, travelled distance, fuel used with following tool:\n1) WRI & WBCSD's protocol, namely “GHG Emissions from Transport or Mobile Sources” which can be accessible at: https://ghgprotocol.org/calculation-tools-and-guidance, or \n2) EPD & EMSD carbon audit tool, which can be accessible at: https://cnsd.gov.hk/en/green-business-and-industry/carbon-audit/\n\nFor Ready Mixed Concrete (RMC) plant to recast concrete plant. For on-site mixing concrete, please enter 0, as the calculation has been included in A1.1.1.1.\n\nIf the travelled distance needs to be entered into a separate tool, please use the actual travelled distance rather than the straight-line distance. Additionally, kindly provide supporting documentation, such as a map indicating the distance, for verification purposes."]
[null,null,null,{"$f":"D61","v":"A2.1.1"},".2",{"$f":"F50","v":"Concrete"},"from Ready Mixed Concrete (RMC) plant to precast concrete plant. \n\n[Note: for on-site mixing concrete, please enter 0 for off-site transportation emission.]",null,null,"[t CO2e/reporting period]"]
[null,null,null,{"$f":"C60","v":"A2.1.1"},".3","Other raw materials except reinforcing bar and concrete",null,null,null,"[t CO2e/reporting period]"]
[null,null,"A3.1 CO2e EMISSIONS FROM PRODUCT MANUFACTURING & ON-SITE TRANSPORTATION",null,null,null,null,null,null,"unit","Total",null,"Product 1","Product 2","Product 3","Product 4","Product 5","Product 6"]
[null,null,"A3.1.1",null,null,"CO2e from product manufacturing (stationary combustion sources NOT  in concrete manufacturing processes)",null,null,null,"[t CO2e/reporting period]"]
[null,null,null,null,null,"Adopting CO2e Factors ","Adopting LHV Factors ","[Please insert additional rows if more energy commodities are included]"]
[null,null,null,{"$f":"C65","v":"A3.1.1"},".1","Select the type of EF for calculation:\n1) Default \n2) Customized\n\nIf \"Customized\" is selected, please enter / add customized EF for each of the product under worksheet \"Customized Fuel EF\".\n\nIf \"Default\" is selected, Applicants shall review the references of the default values to ensure their applicability prior to use.\n\nApplicants are encouraged to prioritize the use of specific life cycle data. In cases where such data is not readily accessible, data from national databases, regional databases, or other recognized sources may be utilized. ","Select the type of LHV factor for calculation:\n1) Default \n2) Customized\n\nIf \"Customized\" is selected, please enter / add customized LHV for each of the product under worksheet \"Customized Fuel LHV\".\n\nIf \"Default\" is selected, Applicants shall review the references of the default values to ensure their applicability prior to use.\n\nApplicants are encouraged to prioritize the use of specific life cycle data. In cases where such data is not readily accessible, data from national databases, regional databases, or other recognized sources may be utilized. ","Please enter the type of energy commodity utilized from  stationary combustion sources which are not covered in concrete manufacturing processes for production manufacturing, including but not limited to, on-site power generation, on-site gas generation, re-heating furnaces, equipment, and room heating / cooling",null,"[t CO2e/reporting period]"]
[null,null,null,{"$f":"C65","v":"A3.1.1"},".2",null,null,null,null,"[t CO2e/reporting period]"]
[null,null,"A3.1.2",null,null,"CO2e from on-site transportation (mobile combustion sources)",null,"CO2e from on-site power generation","CO2e from on-site power generation","[t CO2e/reporting period]"]
[null,null,null,null,null,"Adopting CO2e Factors ","Adopting LHV Factors ","[Please insert additional rows if more energy commodities are included]"]
[null,null,null,{"$f":"C69","v":"A3.1.2"},".1","Select the type of EF for calculation:\n1) Default \n2) Customized\n\nIf \"Customized\" is selected, please enter / add customized EF for each of the product under worksheet \"Customized Fuel EF\".\n\nIf \"Default\" is selected, Applicants shall review the references of the default values to ensure their applicability prior to use.\n\nApplicants are encouraged to prioritize the use of specific life cycle data. In cases where such data is not readily accessible, data from national databases, regional databases, or other recognized sources may be utilized. ","Select the type of LHV factor for calculation:\n1) Default \n2) Customized\n\nIf \"Customized\" is selected, please enter / add customized LHV for each of the product under worksheet \"Customized Fuel LHV\".\n\nIf \"Default\" is selected, Applicants shall review the references of the default values to ensure their applicability prior to use.\n\nApplicants are encouraged to prioritize the use of specific life cycle data. In cases where such data is not readily accessible, data from national databases, regional databases, or other recognized sources may be utilized. ","Please enter the type of energy commodity utilized from mobile combustion sources for on-site transportation.",null,"[t CO2e/reporting period]"]
[null,null,null,{"$f":"C69","v":"A3.1.2"},".2",null,null,null,null,"[t CO2e/reporting period]"]
[null,null,"A3.1.3",null,null,"CO2e from external electricity production",null,null,null,"[t CO2e/reporting period]"]
[null,null,"A3.1.4",null,null,null,null,null,"Total CO2e in Stage A1-A3","[t CO2e/reporting period]"]
[null,"A4","PROJECT LIFE CYCLE STAGE: A4 OFF-SITE TRANSPORTATION OF PRODUCT to border of HK ",null,null,null,null,null,null,"unit","Total",null,"Product 1","Product 2","Product 3","Product 4","Product 5","Product 6"]
[null,null,"A4.1 CO2e EMISSIONS ",null,null,null,null,null,null,"[t CO2e/reporting period]"]
[null,null,"A4.1.1",null,null,"CO2e from off-site transportation of product to border of HK (excluded from assessment boundary)"]
[null,null,null,{"$f":"C77","v":"A4.1.1"},".1","CO2e calculated using either 1) WRI & WBCSD's protocol OR 2) EPD & EMSD's carbon audit tool",null,null,null,"[t CO2e/reporting period]",null,null,"Please enter the GHG emission from stage A4 (from off-site transportation of product to border of HK) for each of the product. \n\nGHG emission can be calculated by required information such as mode of transport, travelled distance, fuel used with following tool:\n1) WRI & WBCSD's protocol, namely “GHG Emissions from Transport or Mobile Sources” which can be accessible at: https://ghgprotocol.org/calculation-tools-and-guidance, or\n2) EPD & EMSD carbon audit tool, which can be accessible at: https://cnsd.gov.hk/en/green-business-and-industry/carbon-audit/\n\nIf the travelled distance needs to be entered into a separate tool, please use the actual travelled distance rather than the straight-line distance. Additionally, kindly provide supporting documentation, such as a map indicating the distance, for verification purposes."]
[null,null,"A4.1.2",null,null,null,null,null,"Total CO2e in Stage A4","[t CO2e/reporting period]",null,null,null,null,null,null,{"$f":"IFERROR(IF(Q78=\"\",\"\",Q78),\"\")","v":""},""]
[]
[null,"P ","PERFORMANCE INDICATORS",null,null,null,null,null,null,"unit","Total",null,"Product 1","Product 2","Product 3","Product 4","Product 5","Product 6"]
[null,"P",{"$f":"LEFT($B$81,2)","v":"P "},1,null,"Gross CO2e (A1-A3)",null,null,null,"[t CO2e/reporting period]"]
[null,null,"P ",{"$f":"D82","v":1},".1","A1 - A3 Raw material extraction and upstream production, Off-site transportation of raw materials to manufacturing plant, & Product manufacturing and fabrication (without wastage)",null,null,null,"[t CO2e/reporting period]"]
[null,null,"P ",{"$f":"D83","v":1},".2","A4 Off-site transportation of product to border of HK (for reference only, excluded from assessment boundary)",null,null,null,"[t CO2e/reporting period]"]
[null,null,"P ",2,null,"Specific gross CO2e per kg of precast concrete produced (A1-A3)",null,null,null,"[kg CO2e/kg precast prod]"]
[null,null,"P ",{"$f":"D85","v":2},".1","A1 - A3 Raw material extraction and upstream production, Off-site transportation of raw materials to manufacturing plant, & Product manufacturing and fabrication (without wastage)",null,null,null,"[kg CO2e/kg precast prod]"]
[null,null,"P ",{"$f":"D86","v":2},".4","A4 Off-site transportation of product to border of HK (for reference only, excluded from assessment boundary)",null,null,null,"[kg CO2e/kg precast prod]"]
[null,null,"P",3,null,"Specific gross CO2e per kg of reinforcing bar produced",null,null,null,"[kg CO2e/kg rebar prod]",null,null,{"$f":"IF(SUMIFS(M:M,$D:$D,\"A1.1.1\",$F:$F,\"Reinforcing bar\")=0,\"n.a.\",SUMIFS(M:M,$D:$D,\"A1.1.1\",$F:$F,\"Reinforcing bar\")/SUMIFS(M:M,$C:$C,\"G4.\",$F:$F,\"Reinforcing bar\"))","v":"n.a."},"n.a.","n.a.","n.a.","n.a.","n.a."]
[null,null,"P",4,null,"Specific gross CO2e per m3 of concrete produced",null,null,null,"[kg CO2e/m3 con prod]",null,null,{"$f":"IF(SUMIFS(M:M,$D:$D,$C$48,$F:$F,\"Concrete\")=0,\"n.a.\",\n(SUMIFS(M:M,$D:$D,\"A1.1.1\",$F:$F,\"Concrete\")/SUMIFS(M:M,$C:$C,\"G4.\",$F:$F,\"Concrete\")*1000))","v":"n.a."},"n.a.","n.a.","n.a.","n.a.","n.a."]

{"sheet":"CFP Quantification","index":2,"n_rows":89,"n_cols":18,"rows_kept":89,"cut":false,"hidden":false,"merged":[[29,1,39,1],[38,10,38,11],[36,10,36,11],[35,10,35,11],[31,10,31,11],[30,10,30,11],[28,10,28,11],[87,10,87,11],[52,10,52,11],[52,2,52,3],[53,2,53,3],[55,5,55,6],[56,5,56,6],[53,5,53,6],[53,7,53,8],[66,10,66,11],[58,2,58,8],[58,10,58,11],[59,2,59,3],[59,5,59,8],[66,7,66,8],[67,7,67,8],[67,10,67,11],[39,10,39,11],[88,10,88,11],[59,10,59,11],[61,10,61,11],[60,7,62,8],[60,10,60,11],[34,5,34,8],[37,5,37,8],[48,6,48,8],[48,10,48,11],[49,10,49,11],[49,6,49,8],[55,10,55,11],[56,10,56,11],[57,10,57,11],[71,10,71,11],[78,10,78,11],[75,10,75,11],[77,10,77,11],[62,10,62,11],[40,2,40,8],[40,10,40,11],[41,10,41,11],[42,10,42,11],[51,10,51,11],[33,10,33,11],[29,2,29,8],[13,10,13,17],[14,10,14,17],[15,10,15,17],[16,10,16,17],[17,10,17,17],[24,5,24,7],[24,8,24,9],[24,10,24,17],[25,5,25,7],[27,10,27,11],[26,10,26,11],[32,10,32,11],[86,5,86,8],[86,10,86,11],[84,10,84,11],[85,5,85,8],[85,10,85,11],[80,2,80,8],[80,10,80,11],[64,10,64,11],[81,10,81,11],[82,5,82,8],[82,10,82,11],[83,5,83,8],[83,10,83,11],[70,7,70,8],[70,10,70,11],[71,7,71,8],[65,7,65,8],[78,5,78,7],[76,2,76,3],[76,5,76,8],[45,1,73,1],[50,10,50,11],[63,2,63,8],[63,10,63,11],[68,10,68,11],[68,2,68,3],[68,5,68,8],[64,2,64,3],[64,5,64,8],[69,7,69,8],[81,1,88,1],[47,2,47,3],[47,5,47,8],[47,10,47,11],[43,1,43,17],[44,2,44,17],[45,2,45,17],[46,2,46,8],[46,10,46,11],[54,5,54,6],[54,10,54,11],[57,5,57,6],[52,5,52,8],[74,1,78,1],[75,2,75,8],[74,10,74,11],[77,5,77,8],[72,2,72,3],[72,5,72,8],[72,10,72,11],[73,2,73,3],[73,5,73,7],[73,10,73,11],[78,2,78,3],[40,1,42,1],[25,8,25,9],[25,10,25,17],[26,1,28,1],[26,2,26,8],[21,8,21,9],[21,10,21,17],[22,8,22,9],[22,10,22,17],[23,8,23,9],[23,10,23,17],[18,1,25,1],[18,2,18,17],[19,8,19,9],[19,10,19,17],[20,8,20,9],[20,10,20,17],[19,5,19,7],[20,5,20,7],[21,5,21,7],[22,5,22,7],[23,5,23,7],[42,12,42,17],[29,10,29,11],[9,5,9,9],[10,5,10,9],[0,0,0,17],[2,8,2,9],[3,8,3,9],[5,1,6,1],[5,2,6,17],[7,1,17,1],[7,2,7,9],[7,10,7,17],[8,5,8,9],[8,10,8,17],[9,10,9,17],[10,10,10,17],[11,10,11,17],[12,6,12,7],[13,6,13,7],[14,6,14,7],[15,6,15,7],[16,6,16,7],[17,6,17,7],[11,5,11,7],[12,10,12,17]]}
["CFP Quantification - Precast Concrete"]
["Product category 1: Structural precast concrete"]
["Product category 2: Façade precast concrete","Date of latest update",null,null,null,null,null,null,"2025-03-24"]
["Product category 3: Architectural / Internal building precast concrete ","Reporting period"]
[]
[null,"G","GENERAL INFORMATION"]
[]
[null,"G1","G1 General Plant Information",null,null,null,null,null,null,null,"Description"]
[null,null,{"$f":"LEFT($C$8,2)&\".\"","v":"G1."},1,null,"Plant"]
[null,null,"G1.",2,null,"Company"]
[null,null,"G1.",3,null,"Country / Region"]
[null,null,null,null,null,"Product category",null,null,"Concrete grade","Reinforcing bar grade","Product name"]
[null,null,"G1.",4,null,"Product 1"]
[null,null,"G1.",5,null,"Product 2"]
[null,null,"G1.",6,null,"Product 3"]
[null,null,"G1.",7,null,"Product 4"]
[null,null,"G1.",8,null,"Product 5"]
[null,null,"G1.",9,null,"Product 6"]
[null,"G2","G2 System Boundary"]
[null,null,{"$f":"LEFT($C$19,2)&\".\"","v":"G2."},1,null,"Raw Material extraction and upstream production",null,null,"[yes, no or n.a.]"]
[null,null,"G2.",2,null,"Off-site transportation of raw materials to manufacturing plant",null,null,"[yes, no or n.a.]"]
[null,null,"G2.",3,null,"Product manufacturing - stationary combustion",null,null,"[yes, no or n.a.]"]
[null,null,"G2.",4,null,"Product manufacturing - mobile combustion ",null,null,"[yes, no or n.a.]"]
[null,null,"G2.",5,null,"Indirect emission from purchased energy ",null,null,"[yes, no or n.a.]"]
[null,null,"G2.",6,null,"Off-site transportation of  product to border of HK [for reference only, excluded from assessment boundary]",null,null,"[yes, no or n.a.]"]
[null,null,"G2.",7,null,"(add other processes as appropriate)",null,null,"[yes, no or n.a.]"]
[null,"G3","G3 Precast Concrete Production",null,null,null,null,null,null,"unit","Total",null,"Product 1","Product 2","Product 3","Product 4","Product 5","Product 6"]
[null,null,{"$f":"LEFT($C$27,2)&\".\"","v":"G3."},1,null,"Precast concrete production in weight",null,null,null,"[t/reporting period]",{"$f":"IF(SUM(M28:R28)=0,\"\",SUM(M28:R28))","v":""}]
[null,null,{"$f":"LEFT($C$27,2)&\".\"","v":"G3."},2,null,"Proportion",null,null,null,"%",{"$f":"IF(SUM(M29:R29)=0,\"\",SUM(M29:R29))","v":""},null,{"$f":"IF(M28=\"\",\"\",M28/$K$28)","v":""},"","","","",""]
[null,"G4","G4 Raw Materials Used to Produce Precast Concrete",null,null,null,null,null,null,"unit","Total",null,"Product 1","Product 2","Product 3","Product 4","Product 5","Product 6"]
[null,null,{"$f":"LEFT($C$30,2)&\".\"","v":"G4."},1,null,"Reinforcing bar","Offsite produced",null,null,"[t/reporting period]",{"$f":"IF(SUM(M31:R31)=0,\"\",SUM(M31:R31))","v":""}]
[null,null,"G4.",2,null,"Concrete",null,null,null,"[m3/reporting period]",{"$f":"IF(SUM(M32:R32)=0,\"\",SUM(M32:R32))","v":""}]
[null,null,"G4.",3,null,null,"Others, if applicable","[refer to \"Customized Embodied EF\"]",null,"[t/reporting period]",{"$f":"IF(SUM(M33:R33)=0,\"\",SUM(M33:R33))","v":""}]
[null,null,"G4.",4,null,null,"Others, if applicable","[refer to \"Customized Embodied EF\"]",null,"[t/reporting period]",{"$f":"IF(SUM(M34:R34)=0,\"\",SUM(M34:R34))","v":""}]
[null,null,"G4.",5,null,"Product manufacturing  (stationary combustion sources NOT covered in concrete manufacturing processes)"]
[null,null,"G4.",{"$f":"D35","v":5},".1","Stationary combustion source",null,"Energy commodity :",null,"[t/reporting period]",null,null,{"$f":"IFERROR(IF($K36=\"\",\"\",$K36*M$29),\"\")","v":""},"","","","",""]
[null,null,"G4.",{"$f":"D36","v":5},".2","Stationary combustion source",null,"Energy commodity :",null,"[t/reporting period]",null,null,"","","","","",""]
[null,null,"G4.",6,null,"On-site transportation"]
[null,null,"G4.",{"$f":"D38","v":6},".1","Mobile combustion source",null,"Energy commodity :",null,"[t/reporting period]",null,null,"","","","","",""]
[null,null,"G4.",{"$f":"D39","v":6},".2","Mobile combustion source",null,"Energy commodity :",null,"[t/reporting period]",null,null,"","","","","",""]
[null,"G5","G5. Power Consumption of Purchased Energy",null,null,null,null,null,null,"unit","Total",null,"Product 1","Product 2","Product 3","Product 4","Product 5","Product 6"]
[null,null,{"$f":"LEFT($C$41,2)&\".\"","v":"G5."},1,null,"Consumption of electricity produced externally",null,null,null,"[MWh/reporting period]",null,null,{"$f":"IFERROR(IF($K42=\"\",\"\",$K42*M29),\"\")","v":""},"","","","",""]
[null,null,{"$f":"LEFT($C$41,2)&\".\"","v":"G5."},2,null,"CO2e per unit of electricity produced externally",null,null,null,"[kg CO2e/MWh]"]
[]
[null,"A","ASSESSMENT"]
[null,"A1 - A3","PROJECT LIFE CYCLE STAGE : A1 RAW MATERIAL EXTRACTION AND UPSTREAM PRODUCTION,  A2 OFF-SITE TRANSPORTATION OF RAW MATERIALS TO MANUFACTURING PLANT, A3 PRODUCT MANUFACTURING AND FABRICATION (WITHOUT WASTAGE)"]
[null,null,"A1.1 CO2e EMISSIONS FROM BOUGHT RAW MATERIALS & BOUGHT ENERGY COMMODITY",null,null,null,null,null,null,"unit","Total",null,"Product 1","Product 2","Product 3","Product 4","Product 5","Product 6"]
[null,null,"A1.1.1",null,null,"CO2e from bought raw materials",null,null,null,"[t CO2e/reporting period]",{"$f":"SUM(M48:R48)","v":0},null,{"$f":"SUMIF($D:$D,$C48,M:M)","v":0},0,0,0,0,0]
[null,null,null,{"$f":"C48","v":"A1.1.1"},".1",{"$f":"F31","v":"Reinforcing bar"},"CO2e in A1 - A3 calculated using either \n1) CIC's  CFP Quantification Tool - Reinforcing Bar & Structural Steel [Sum of sections P1.1-P.1.3 of CFP tool],  OR \n2) EPD / CFP report with 3rd party verification for reinforcing bars utilized",null,null,"[t CO2e/reporting period]",{"$f":"IF(SUM(M49:R49)=0,\"\",SUM(M49:R49))","v":""}]
[null,null,null,{"$f":"D49","v":"A1.1.1"},".2",{"$f":"F32","v":"Concrete"},"CO2e in A1 - A3 calculated using either \n1) CIC's  CFP Quantification Tool - Ready-mixed Concrete [Sum of sections P1.1-P.1.3 of CFP tool],  OR \n2) EPD / CFP report with 3rd party verification for concrete utilized",null,null,"[t CO2e/reporting period]",{"$f":"IF(SUM(M50:R50)=0,\"\",SUM(M50:R50))","v":""}]
[null,null,null,{"$f":"D49","v":"A1.1.1"},".3",{"$f":"F33","v":0},"CO2e calculated by customized CO2e factors as specified in worksheet \"Customized Embodied EF\"",null,null,"[t CO2e/reporting period]",{"$f":"IF(SUM(M51:R51)=0,\"\",SUM(M51:R51))","v":""},null,{"$f":"IF($F51=\"\",0,IF(SUMIFS(M:M,$F:$F,$F51,$C:$C,\"G4.\")=0,0,IFERROR(SUMIFS(M:M,$F:$F,$F51,$C:$C,\"G4.\")*IF(_xlfn.XLOOKUP($F51,'Customized Embodied EF'!$B:$B,'Customized Embodied EF'!E:E,\"error\",0)=\"\",\"Factor error\",_xlfn.XLOOKUP($F51,'Customized Embodied EF'!$B:$B,'Customized Embodied EF'!E:E,\"error\",0)),\"Factor error\")))","v":0},{"$f":"IF($F51=\"\",0,IF(SUMIFS(N:N,$F:$F,$F51,$C:$C,\"G4.\")=0,0,IFERROR(SUMIFS(N:N,$F:$F,$F51,$C:$C,\"G4.\")*IF(_xlfn.XLOOKUP($F51,'Customized Embodied EF'!$B:$B,'Customized Embodied EF'!F:F,\"error\",0)=\"\",\"Factor error\",_xlfn.XLOOKUP($F51,'Customized Embodied EF'!$B:$B,'Customized Embodied EF'!F:F,\"error\",0)),\"Factor error\")))","v":0},{"$f":"IF($F51=\"\",0,IF(SUMIFS(O:O,$F:$F,$F51,$C:$C,\"G4.\")=0,0,IFERROR(SUMIFS(O:O,$F:$F,$F51,$C:$C,\"G4.\")*IF(_xlfn.XLOOKUP($F51,'Customized Embodied EF'!$B:$B,'Customized Embodied EF'!G:G,\"error\",0)=\"\",\"Factor error\",_xlfn.XLOOKUP($F51,'Customized Embodied EF'!$B:$B,'Customized Embodied EF'!G:G,\"error\",0)),\"Factor error\")))","v":0},{"$f":"IF($F51=\"\",0,IF(SUMIFS(P:P,$F:$F,$F51,$C:$C,\"G4.\")=0,0,IFERROR(SUMIFS(P:P,$F:$F,$F51,$C:$C,\"G4.\")*IF(_xlfn.XLOOKUP($F51,'Customized Embodied EF'!$B:$B,'Customized Embodied EF'!H:H,\"error\",0)=\"\",\"Factor error\",_xlfn.XLOOKUP($F51,'Customized Embodied EF'!$B:$B,'Customized Embodied EF'!H:H,\"error\",0)),\"Factor error\")))","v":0},{"$f":"IF($F51=\"\",0,IF(SUMIFS(Q:Q,$F:$F,$F51,$C:$C,\"G4.\")=0,0,IFERROR(SUMIFS(Q:Q,$F:$F,$F51,$C:$C,\"G4.\")*IF(_xlfn.XLOOKUP($F51,'Customized Embodied EF'!$B:$B,'Customized Embodied EF'!I:I,\"error\",0)=\"\",\"Factor error\",_xlfn.XLOOKUP($F51,'Customized Embodied EF'!$B:$B,'Customized Embodied EF'!I:I,\"error\",0)),\"Factor error\")))","v":0},{"$f":"IF($F51=\"\",0,IF(SUMIFS(R:R,$F:$F,$F51,$C:$C,\"G4.\")=0,0,IFERROR(SUMIFS(R:R,$F:$F,$F51,$C:$C,\"G4.\")*IF(_xlfn.XLOOKUP($F51,'Customized Embodied EF'!$B:$B,'Customized Embodied EF'!J:J,\"error\",0)=\"\",\"Factor error\",_xlfn.XLOOKUP($F51,'Customized Embodied EF'!$B:$B,'Customized Embodied EF'!J:J,\"error\",0)),\"Factor error\")))","v":0}]
[null,null,null,{"$f":"D50","v":"A1.1.1"},".4",{"$f":"F34","v":0},"CO2e calculated by customized CO2e factors as specified in worksheet \"Customized Embodied EF\"",null,null,"[t CO2e/reporting period]","",null,{"$f":"IF($F52=\"\",0,IF(SUMIFS(M:M,$F:$F,$F52,$C:$C,\"G4.\")=0,0,IFERROR(SUMIFS(M:M,$F:$F,$F52,$C:$C,\"G4.\")*IF(_xlfn.XLOOKUP($F52,'Customized Embodied EF'!$B:$B,'Customized Embodied EF'!E:E,\"error\",0)=\"\",\"Factor error\",_xlfn.XLOOKUP($F52,'Customized Embodied EF'!$B:$B,'Customized Embodied EF'!E:E,\"error\",0)),\"Factor error\")))","v":0},{"$f":"IF($F52=\"\",0,IF(SUMIFS(N:N,$F:$F,$F52,$C:$C,\"G4.\")=0,0,IFERROR(SUMIFS(N:N,$F:$F,$F52,$C:$C,\"G4.\")*IF(_xlfn.XLOOKUP($F52,'Customized Embodied EF'!$B:$B,'Customized Embodied EF'!F:F,\"error\",0)=\"\",\"Factor error\",_xlfn.XLOOKUP($F52,'Customized Embodied EF'!$B:$B,'Customized Embodied EF'!F:F,\"error\",0)),\"Factor error\")))","v":0},{"$f":"IF($F52=\"\",0,IF(SUMIFS(O:O,$F:$F,$F52,$C:$C,\"G4.\")=0,0,IFERROR(SUMIFS(O:O,$F:$F,$F52,$C:$C,\"G4.\")*IF(_xlfn.XLOOKUP($F52,'Customized Embodied EF'!$B:$B,'Customized Embodied EF'!G:G,\"error\",0)=\"\",\"Factor error\",_xlfn.XLOOKUP($F52,'Customized Embodied EF'!$B:$B,'Customized Embodied EF'!G:G,\"error\",0)),\"Factor error\")))","v":0},{"$f":"IF($F52=\"\",0,IF(SUMIFS(P:P,$F:$F,$F52,$C:$C,\"G4.\")=0,0,IFERROR(SUMIFS(P:P,$F:$F,$F52,$C:$C,\"G4.\")*IF(_xlfn.XLOOKUP($F52,'Customized Embodied EF'!$B:$B,'Customized Embodied EF'!H:H,\"error\",0)=\"\",\"Factor error\",_xlfn.XLOOKUP($F52,'Customized Embodied EF'!$B:$B,'Customized Embodied EF'!H:H,\"error\",0)),\"Factor error\")))","v":0},{"$f":"IF($F52=\"\",0,IF(SUMIFS(Q:Q,$F:$F,$F52,$C:$C,\"G4.\")=0,0,IFERROR(SUMIFS(Q:Q,$F:$F,$F52,$C:$C,\"G4.\")*IF(_xlfn.XLOOKUP($F52,'Customized Embodied EF'!$B:$B,'Customized Embodied EF'!I:I,\"error\",0)=\"\",\"Factor error\",_xlfn.XLOOKUP($F52,'Customized Embodied EF'!$B:$B,'Customized Embodied EF'!I:I,\"error\",0)),\"Factor error\")))","v":0},{"$f":"IF($F52=\"\",0,IF(SUMIFS(R:R,$F:$F,$F52,$C:$C,\"G4.\")=0,0,IFERROR(SUMIFS(R:R,$F:$F,$F52,$C:$C,\"G4.\")*IF(_xlfn.XLOOKUP($F52,'Customized Embodied EF'!$B:$B,'Customized Embodied EF'!J:J,\"error\",0)=\"\",\"Factor error\",_xlfn.XLOOKUP($F52,'Customized Embodied EF'!$B:$B,'Customized Embodied EF'!J:J,\"error\",0)),\"Factor error\")))","v":0}]
[null,null,"A1.1.2",null,null,"CO2e from bought energy commodity",null,null,null,"[t CO2e/reporting period]",{"$f":"IF(SUM(M53:R53)=0,\"\",SUM(M53:R53))","v":""},null,{"$f":"SUMIF($D:$D,$C53,M:M)","v":0},0,0,0,0,0]
[null,null,null,null,null,"Adopting CO2e Factors ",null,"[Please insert additional rows if more energy commodities are included]"]
[null,null,null,{"$f":"C53","v":"A1.1.2"},".1",null,null,{"$f":"H39","v":"Energy commodity :"},null,"[t CO2e/reporting period]",{"$f":"SUM(M55:R55)","v":0},null,{"$f":"IFERROR(SUMIFS(M:M,$I:$I,$I55,$C:$C,\"G4.\")*IF($F55=\"Customized\",\nIF(_xlfn.XLOOKUP($I55,'Customized Embodied EF'!$B:$B,'Customized Embodied EF'!E:E,\"error\",0)=\"\",\"Factor error\",_xlfn.XLOOKUP($I55,'Customized Embodied EF'!$B:$B,'Customized Embodied EF'!E:E,\"error\",0)),_xlfn.XLOOKUP($I55,'Customized Embodied EF'!$B:$B,'Customized Embodied EF'!$D:$D,\"error\",0)),\"Factor error\")","v":0},{"$f":"IFERROR(SUMIFS(N:N,$I:$I,$I55,$C:$C,\"G4.\")*IF($F55=\"Customized\",\nIF(_xlfn.XLOOKUP($I55,'Customized Embodied EF'!$B:$B,'Customized Embodied EF'!F:F,\"error\",0)=\"\",\"Factor error\",_xlfn.XLOOKUP($I55,'Customized Embodied EF'!$B:$B,'Customized Embodied EF'!F:F,\"error\",0)),_xlfn.XLOOKUP($I55,'Customized Embodied EF'!$B:$B,'Customized Embodied EF'!$D:$D,\"error\",0)),\"Factor error\")","v":0},{"$f":"IFERROR(SUMIFS(O:O,$I:$I,$I55,$C:$C,\"G4.\")*IF($F55=\"Customized\",\nIF(_xlfn.XLOOKUP($I55,'Customized Embodied EF'!$B:$B,'Customized Embodied EF'!G:G,\"error\",0)=\"\",\"Factor error\",_xlfn.XLOOKUP($I55,'Customized Embodied EF'!$B:$B,'Customized Embodied EF'!G:G,\"error\",0)),_xlfn.XLOOKUP($I55,'Customized Embodied EF'!$B:$B,'Customized Embodied EF'!$D:$D,\"error\",0)),\"Factor error\")","v":0},{"$f":"IFERROR(SUMIFS(P:P,$I:$I,$I55,$C:$C,\"G4.\")*IF($F55=\"Customized\",\nIF(_xlfn.XLOOKUP($I55,'Customized Embodied EF'!$B:$B,'Customized Embodied EF'!H:H,\"error\",0)=\"\",\"Factor error\",_xlfn.XLOOKUP($I55,'Customized Embodied EF'!$B:$B,'Customized Embodied EF'!H:H,\"error\",0)),_xlfn.XLOOKUP($I55,'Customized Embodied EF'!$B:$B,'Customized Embodied EF'!$D:$D,\"error\",0)),\"Factor error\")","v":0},{"$f":"IFERROR(SUMIFS(Q:Q,$I:$I,$I55,$C:$C,\"G4.\")*IF($F55=\"Customized\",\nIF(_xlfn.XLOOKUP($I55,'Customized Embodied EF'!$B:$B,'Customized Embodied EF'!I:I,\"error\",0)=\"\",\"Factor error\",_xlfn.XLOOKUP($I55,'Customized Embodied EF'!$B:$B,'Customized Embodied EF'!I:I,\"error\",0)),_xlfn.XLOOKUP($I55,'Customized Embodied EF'!$B:$B,'Customized Embodied EF'!$D:$D,\"error\",0)),\"Factor error\")","v":0},{"$f":"IFERROR(SUMIFS(R:R,$I:$I,$I55,$C:$C,\"G4.\")*IF($F55=\"Customized\",\nIF(_xlfn.XLOOKUP($I55,'Customized Embodied EF'!$B:$B,'Customized Embodied EF'!J:J,\"error\",0)=\"\",\"Factor error\",_xlfn.XLOOKUP($I55,'Customized Embodied EF'!$B:$B,'Customized Embodied EF'!J:J,\"error\",0)),_xlfn.XLOOKUP($I55,'Customized Embodied EF'!$B:$B,'Customized Embodied EF'!$D:$D,\"error\",0)),\"Factor error\")","v":0}]
[null,null,null,{"$f":"D55","v":"A1.1.2"},".2",null,null,{"$f":"H40","v":"Energy commodity :"},null,"[t CO2e/reporting period]",{"$f":"SUM(M56:R56)","v":0},null,{"$f":"IFERROR(SUMIFS(M:M,$I:$I,$I56,$C:$C,\"G4.\")*IF($F56=\"Customized\",\nIF(_xlfn.XLOOKUP($I56,'Customized Embodied EF'!$B:$B,'Customized Embodied EF'!E:E,\"error\",0)=\"\",\"Factor error\",_xlfn.XLOOKUP($I56,'Customized Embodied EF'!$B:$B,'Customized Embodied EF'!E:E,\"error\",0)),_xlfn.XLOOKUP($I56,'Customized Embodied EF'!$B:$B,'Customized Embodied EF'!$D:$D,\"error\",0)),\"Factor error\")","v":0},{"$f":"IFERROR(SUMIFS(N:N,$I:$I,$I56,$C:$C,\"G4.\")*IF($F56=\"Customized\",\nIF(_xlfn.XLOOKUP($I56,'Customized Embodied EF'!$B:$B,'Customized Embodied EF'!F:F,\"error\",0)=\"\",\"Factor error\",_xlfn.XLOOKUP($I56,'Customized Embodied EF'!$B:$B,'Customized Embodied EF'!F:F,\"error\",0)),_xlfn.XLOOKUP($I56,'Customized Embodied EF'!$B:$B,'Customized Embodied EF'!$D:$D,\"error\",0)),\"Factor error\")","v":0},{"$f":"IFERROR(SUMIFS(O:O,$I:$I,$I56,$C:$C,\"G4.\")*IF($F56=\"Customized\",\nIF(_xlfn.XLOOKUP($I56,'Customized Embodied EF'!$B:$B,'Customized Embodied EF'!G:G,\"error\",0)=\"\",\"Factor error\",_xlfn.XLOOKUP($I56,'Customized Embodied EF'!$B:$B,'Customized Embodied EF'!G:G,\"error\",0)),_xlfn.XLOOKUP($I56,'Customized Embodied EF'!$B:$B,'Customized Embodied EF'!$D:$D,\"error\",0)),\"Factor error\")","v":0},{"$f":"IFERROR(SUMIFS(P:P,$I:$I,$I56,$C:$C,\"G4.\")*IF($F56=\"Customized\",\nIF(_xlfn.XLOOKUP($I56,'Customized Embodied EF'!$B:$B,'Customized Embodied EF'!H:H,\"error\",0)=\"\",\"Factor error\",_xlfn.XLOOKUP($I56,'Customized Embodied EF'!$B:$B,'Customized Embodied EF'!H:H,\"error\",0)),_xlfn.XLOOKUP($I56,'Customized Embodied EF'!$B:$B,'Customized Embodied EF'!$D:$D,\"error\",0)),\"Factor error\")","v":0},{"$f":"IFERROR(SUMIFS(Q:Q,$I:$I,$I56,$C:$C,\"G4.\")*IF($F56=\"Customized\",\nIF(_xlfn.XLOOKUP($I56,'Customized Embodied EF'!$B:$B,'Customized Embodied EF'!I:I,\"error\",0)=\"\",\"Factor error\",_xlfn.XLOOKUP($I56,'Customized Embodied EF'!$B:$B,'Customized Embodied EF'!I:I,\"error\",0)),_xlfn.XLOOKUP($I56,'Customized Embodied EF'!$B:$B,'Customized Embodied EF'!$D:$D,\"error\",0)),\"Factor error\")","v":0},{"$f":"IFERROR(SUMIFS(R:R,$I:$I,$I56,$C:$C,\"G4.\")*IF($F56=\"Customized\",\nIF(_xlfn.XLOOKUP($I56,'Customized Embodied EF'!$B:$B,'Customized Embodied EF'!J:J,\"error\",0)=\"\",\"Factor error\",_xlfn.XLOOKUP($I56,'Customized Embodied EF'!$B:$B,'Customized Embodied EF'!J:J,\"error\",0)),_xlfn.XLOOKUP($I56,'Customized Embodied EF'!$B:$B,'Customized Embodied EF'!$D:$D,\"error\",0)),\"Factor error\")","v":0}]
[null,null,null,{"$f":"D56","v":"A1.1.2"},".3",null,null,{"$f":"H56","v":"Energy commodity :"},null,"[t CO2e/reporting period]",0,null,{"$f":"IFERROR(SUMIFS(M:M,$I:$I,$I57,$C:$C,\"G4.\")*IF($F57=\"Customized\",\nIF(_xlfn.XLOOKUP($I57,'Customized Embodied EF'!$B:$B,'Customized Embodied EF'!E:E,\"error\",0)=\"\",\"Factor error\",_xlfn.XLOOKUP($I57,'Customized Embodied EF'!$B:$B,'Customized Embodied EF'!E:E,\"error\",0)),_xlfn.XLOOKUP($I57,'Customized Embodied EF'!$B:$B,'Customized Embodied EF'!$D:$D,\"error\",0)),\"Factor error\")","v":0},{"$f":"IFERROR(SUMIFS(N:N,$I:$I,$I57,$C:$C,\"G4.\")*IF($F57=\"Customized\",\nIF(_xlfn.XLOOKUP($I57,'Customized Embodied EF'!$B:$B,'Customized Embodied EF'!F:F,\"error\",0)=\"\",\"Factor error\",_xlfn.XLOOKUP($I57,'Customized Embodied EF'!$B:$B,'Customized Embodied EF'!F:F,\"error\",0)),_xlfn.XLOOKUP($I57,'Customized Embodied EF'!$B:$B,'Customized Embodied EF'!$D:$D,\"error\",0)),\"Factor error\")","v":0},{"$f":"IFERROR(SUMIFS(O:O,$I:$I,$I57,$C:$C,\"G4.\")*IF($F57=\"Customized\",\nIF(_xlfn.XLOOKUP($I57,'Customized Embodied EF'!$B:$B,'Customized Embodied EF'!G:G,\"error\",0)=\"\",\"Factor error\",_xlfn.XLOOKUP($I57,'Customized Embodied EF'!$B:$B,'Customized Embodied EF'!G:G,\"error\",0)),_xlfn.XLOOKUP($I57,'Customized Embodied EF'!$B:$B,'Customized Embodied EF'!$D:$D,\"error\",0)),\"Factor error\")","v":0},{"$f":"IFERROR(SUMIFS(P:P,$I:$I,$I57,$C:$C,\"G4.\")*IF($F57=\"Customized\",\nIF(_xlfn.XLOOKUP($I57,'Customized Embodied EF'!$B:$B,'Customized Embodied EF'!H:H,\"error\",0)=\"\",\"Factor error\",_xlfn.XLOOKUP($I57,'Customized Embodied EF'!$B:$B,'Customized Embodied EF'!H:H,\"error\",0)),_xlfn.XLOOKUP($I57,'Customized Embodied EF'!$B:$B,'Customized Embodied EF'!$D:$D,\"error\",0)),\"Factor error\")","v":0},{"$f":"IFERROR(SUMIFS(Q:Q,$I:$I,$I57,$C:$C,\"G4.\")*IF($F57=\"Customized\",\nIF(_xlfn.XLOOKUP($I57,'Customized Embodied EF'!$B:$B,'Customized Embodied EF'!I:I,\"error\",0)=\"\",\"Factor error\",_xlfn.XLOOKUP($I57,'Customized Embodied EF'!$B:$B,'Customized Embodied EF'!I:I,\"error\",0)),_xlfn.XLOOKUP($I57,'Customized Embodied EF'!$B:$B,'Customized Embodied EF'!$D:$D,\"error\",0)),\"Factor error\")","v":0},{"$f":"IFERROR(SUMIFS(R:R,$I:$I,$I57,$C:$C,\"G4.\")*IF($F57=\"Customized\",\nIF(_xlfn.XLOOKUP($I57,'Customized Embodied EF'!$B:$B,'Customized Embodied EF'!J:J,\"error\",0)=\"\",\"Factor error\",_xlfn.XLOOKUP($I57,'Customized Embodied EF'!$B:$B,'Customized Embodied EF'!J:J,\"error\",0)),_xlfn.XLOOKUP($I57,'Customized Embodied EF'!$B:$B,'Customized Embodied EF'!$D:$D,\"error\",0)),\"Factor error\")","v":0}]
[null,null,null,{"$f":"D57","v":"A1.1.2"},".4",null,null,{"$f":"H57","v":"Energy commodity :"},null,"[t CO2e/reporting period]",0,null,{"$f":"IFERROR(SUMIFS(M:M,$I:$I,$I58,$C:$C,\"G4.\")*IF($F58=\"Customized\",\nIF(_xlfn.XLOOKUP($I58,'Customized Embodied EF'!$B:$B,'Customized Embodied EF'!E:E,\"error\",0)=\"\",\"Factor error\",_xlfn.XLOOKUP($I58,'Customized Embodied EF'!$B:$B,'Customized Embodied EF'!E:E,\"error\",0)),_xlfn.XLOOKUP($I58,'Customized Embodied EF'!$B:$B,'Customized Embodied EF'!$D:$D,\"error\",0)),\"Factor error\")","v":0},{"$f":"IFERROR(SUMIFS(N:N,$I:$I,$I58,$C:$C,\"G4.\")*IF($F58=\"Customized\",\nIF(_xlfn.XLOOKUP($I58,'Customized Embodied EF'!$B:$B,'Customized Embodied EF'!F:F,\"error\",0)=\"\",\"Factor error\",_xlfn.XLOOKUP($I58,'Customized Embodied EF'!$B:$B,'Customized Embodied EF'!F:F,\"error\",0)),_xlfn.XLOOKUP($I58,'Customized Embodied EF'!$B:$B,'Customized Embodied EF'!$D:$D,\"error\",0)),\"Factor error\")","v":0},{"$f":"IFERROR(SUMIFS(O:O,$I:$I,$I58,$C:$C,\"G4.\")*IF($F58=\"Customized\",\nIF(_xlfn.XLOOKUP($I58,'Customized Embodied EF'!$B:$B,'Customized Embodied EF'!G:G,\"error\",0)=\"\",\"Factor error\",_xlfn.XLOOKUP($I58,'Customized Embodied EF'!$B:$B,'Customized Embodied EF'!G:G,\"error\",0)),_xlfn.XLOOKUP($I58,'Customized Embodied EF'!$B:$B,'Customized Embodied EF'!$D:$D,\"error\",0)),\"Factor error\")","v":0},{"$f":"IFERROR(SUMIFS(P:P,$I:$I,$I58,$C:$C,\"G4.\")*IF($F58=\"Customized\",\nIF(_xlfn.XLOOKUP($I58,'Customized Embodied EF'!$B:$B,'Customized Embodied EF'!H:H,\"error\",0)=\"\",\"Factor error\",_xlfn.XLOOKUP($I58,'Customized Embodied EF'!$B:$B,'Customized Embodied EF'!H:H,\"error\",0)),_xlfn.XLOOKUP($I58,'Customized Embodied EF'!$B:$B,'Customized Embodied EF'!$D:$D,\"error\",0)),\"Factor error\")","v":0},{"$f":"IFERROR(SUMIFS(Q:Q,$I:$I,$I58,$C:$C,\"G4.\")*IF($F58=\"Customized\",\nIF(_xlfn.XLOOKUP($I58,'Customized Embodied EF'!$B:$B,'Customized Embodied EF'!I:I,\"error\",0)=\"\",\"Factor error\",_xlfn.XLOOKUP($I58,'Customized Embodied EF'!$B:$B,'Customized Embodied EF'!I:I,\"error\",0)),_xlfn.XLOOKUP($I58,'Customized Embodied EF'!$B:$B,'Customized Embodied EF'!$D:$D,\"error\",0)),\"Factor error\")","v":0},{"$f":"IFERROR(SUMIFS(R:R,$I:$I,$I58,$C:$C,\"G4.\")*IF($F58=\"Customized\",\nIF(_xlfn.XLOOKUP($I58,'Customized Embodied EF'!$B:$B,'Customized Embodied EF'!J:J,\"error\",0)=\"\",\"Factor error\",_xlfn.XLOOKUP($I58,'Customized Embodied EF'!$B:$B,'Customized Embodied EF'!J:J,\"error\",0)),_xlfn.XLOOKUP($I58,'Customized Embodied EF'!$B:$B,'Customized Embodied EF'!$D:$D,\"error\",0)),\"Factor error\")","v":0}]
[null,null,"A2.1 CO2e EMISSIONS FROM OFF-SITE TRANSPORTATION OF RAW MATERIAL TO MANUFACTURING PLANT",null,null,null,null,null,null,"unit","Total",null,"Product 1","Product 2","Product 3","Product 4","Product 5","Product 6"]
[null,null,"A2.1.1",null,null,"CO2e from off-site transportation of raw material to manufacturing plant",null,null,null,null,{"$f":"SUM(M60:R60)","v":0},null,{"$f":"SUMIF($D:$D,$C60,M:M)","v":0},0,0,0,0,0]
[null,null,null,{"$f":"C60","v":"A2.1.1"},".1",{"$f":"F49","v":"Reinforcing bar"},"from steel plant to precast concrete plant","CO2e calculated using either \n1) WRI & WBCSD's protocol OR \n2) EPD & EMSD's carbon audit tool",null,"[t CO2e/reporting period]",{"$f":"SUM(M61:R61)","v":0}]
[null,null,null,{"$f":"D61","v":"A2.1.1"},".2",{"$f":"F50","v":"Concrete"},"from Ready Mixed Concrete (RMC) plant to precast concrete plant. \n\n[Note: for on-site mixing concrete, please enter 0 for off-site transportation emission.]",null,null,"[t CO2e/reporting period]",0]
[null,null,null,{"$f":"C60","v":"A2.1.1"},".3","Other raw materials except reinforcing bar and concrete",null,null,null,"[t CO2e/reporting period]",{"$f":"SUM(M63:R63)","v":0}]
[null,null,"A3.1 CO2e EMISSIONS FROM PRODUCT MANUFACTURING & ON-SITE TRANSPORTATION",null,null,null,null,null,null,"unit","Total",null,"Product 1","Product 2","Product 3","Product 4","Product 5","Product 6"]
[null,null,"A3.1.1",null,null,"CO2e from product manufacturing (stationary combustion sources NOT  in concrete manufacturing processes)",null,null,null,"[t CO2e/reporting period]",{"$f":"SUM(M65:R65)","v":0},null,{"$f":"SUMIF($D:$D,$C65,M:M)","v":0},0,0,0,0,0]
[null,null,null,null,null,"Adopting CO2e Factors ","Adopting LHV Factors ","[Please insert additional rows if more energy commodities are included]"]
[null,null,null,{"$f":"C65","v":"A3.1.1"},".1",null,null,null,null,"[t CO2e/reporting period]",{"$f":"SUM(M67:R67)","v":0},null,{"$f":"IFERROR(SUMIFS(M:M,$D:$D,$D36,$I:$I,$H67)*IF($G67=\"Customized\",\nIF(_xlfn.XLOOKUP($H67,'Customized Fuel LHV'!$B:$B,'Customized Fuel LHV'!E:E,\"No LHV\",0)=\"\",\"Factor error\",_xlfn.XLOOKUP($H67,'Customized Fuel LHV'!$B:$B,'Customized Fuel LHV'!E:E,\"No LHV\",0)),_xlfn.XLOOKUP($H67,'Customized Fuel LHV'!$B:$B,'Customized Fuel LHV'!$D:$D,\"No LHV\",0))*IF($F67=\"Customized\",\nIF(_xlfn.XLOOKUP($H67,'Customized Fuel EF'!$B:$B,'Customized Fuel EF'!E:E,\"No EF\",0)=\"\",\"Factor error\",_xlfn.XLOOKUP($H67,'Customized Fuel EF'!$B:$B,'Customized Fuel EF'!E:E,\"No EF\",0)),_xlfn.XLOOKUP($H67,'Customized Fuel EF'!$B:$B,'Customized Fuel EF'!$D:$D,\"No EF\",0))/1000,\"Factor error\")","v":0},{"$f":"IFERROR(SUMIFS(N:N,$D:$D,$D36,$I:$I,$H67)*IF($G67=\"Customized\",\nIF(_xlfn.XLOOKUP($H67,'Customized Fuel LHV'!$B:$B,'Customized Fuel LHV'!F:F,\"No LHV\",0)=\"\",\"Factor error\",_xlfn.XLOOKUP($H67,'Customized Fuel LHV'!$B:$B,'Customized Fuel LHV'!F:F,\"No LHV\",0)),_xlfn.XLOOKUP($H67,'Customized Fuel LHV'!$B:$B,'Customized Fuel LHV'!$D:$D,\"No LHV\",0))*IF($F67=\"Customized\",\nIF(_xlfn.XLOOKUP($H67,'Customized Fuel EF'!$B:$B,'Customized Fuel EF'!F:F,\"No EF\",0)=\"\",\"Factor error\",_xlfn.XLOOKUP($H67,'Customized Fuel EF'!$B:$B,'Customized Fuel EF'!F:F,\"No EF\",0)),_xlfn.XLOOKUP($H67,'Customized Fuel EF'!$B:$B,'Customized Fuel EF'!$D:$D,\"No EF\",0))/1000,\"Factor error\")","v":0},{"$f":"IFERROR(SUMIFS(O:O,$D:$D,$D36,$I:$I,$H67)*IF($G67=\"Customized\",\nIF(_xlfn.XLOOKUP($H67,'Customized Fuel LHV'!$B:$B,'Customized Fuel LHV'!G:G,\"No LHV\",0)=\"\",\"Factor error\",_xlfn.XLOOKUP($H67,'Customized Fuel LHV'!$B:$B,'Customized Fuel LHV'!G:G,\"No LHV\",0)),_xlfn.XLOOKUP($H67,'Customized Fuel LHV'!$B:$B,'Customized Fuel LHV'!$D:$D,\"No LHV\",0))*IF($F67=\"Customized\",\nIF(_xlfn.XLOOKUP($H67,'Customized Fuel EF'!$B:$B,'Customized Fuel EF'!G:G,\"No EF\",0)=\"\",\"Factor error\",_xlfn.XLOOKUP($H67,'Customized Fuel EF'!$B:$B,'Customized Fuel EF'!G:G,\"No EF\",0)),_xlfn.XLOOKUP($H67,'Customized Fuel EF'!$B:$B,'Customized Fuel EF'!$D:$D,\"No EF\",0))/1000,\"Factor error\")","v":0},{"$f":"IFERROR(SUMIFS(P:P,$D:$D,$D36,$I:$I,$H67)*IF($G67=\"Customized\",\nIF(_xlfn.XLOOKUP($H67,'Customized Fuel LHV'!$B:$B,'Customized Fuel LHV'!H:H,\"No LHV\",0)=\"\",\"Factor error\",_xlfn.XLOOKUP($H67,'Customized Fuel LHV'!$B:$B,'Customized Fuel LHV'!H:H,\"No LHV\",0)),_xlfn.XLOOKUP($H67,'Customized Fuel LHV'!$B:$B,'Customized Fuel LHV'!$D:$D,\"No LHV\",0))*IF($F67=\"Customized\",\nIF(_xlfn.XLOOKUP($H67,'Customized Fuel EF'!$B:$B,'Customized Fuel EF'!H:H,\"No EF\",0)=\"\",\"Factor error\",_xlfn.XLOOKUP($H67,'Customized Fuel EF'!$B:$B,'Customized Fuel EF'!H:H,\"No EF\",0)),_xlfn.XLOOKUP($H67,'Customized Fuel EF'!$B:$B,'Customized Fuel EF'!$D:$D,\"No EF\",0))/1000,\"Factor error\")","v":0},{"$f":"IFERROR(SUMIFS(Q:Q,$D:$D,$D36,$I:$I,$H67)*IF($G67=\"Customized\",\nIF(_xlfn.XLOOKUP($H67,'Customized Fuel LHV'!$B:$B,'Customized Fuel LHV'!I:I,\"No LHV\",0)=\"\",\"Factor error\",_xlfn.XLOOKUP($H67,'Customized Fuel LHV'!$B:$B,'Customized Fuel LHV'!I:I,\"No LHV\",0)),_xlfn.XLOOKUP($H67,'Customized Fuel LHV'!$B:$B,'Customized Fuel LHV'!$D:$D,\"No LHV\",0))*IF($F67=\"Customized\",\nIF(_xlfn.XLOOKUP($H67,'Customized Fuel EF'!$B:$B,'Customized Fuel EF'!I:I,\"No EF\",0)=\"\",\"Factor error\",_xlfn.XLOOKUP($H67,'Customized Fuel EF'!$B:$B,'Customized Fuel EF'!I:I,\"No EF\",0)),_xlfn.XLOOKUP($H67,'Customized Fuel EF'!$B:$B,'Customized Fuel EF'!$D:$D,\"No EF\",0))/1000,\"Factor error\")","v":0},{"$f":"IFERROR(SUMIFS(R:R,$D:$D,$D36,$I:$I,$H67)*IF($G67=\"Customized\",\nIF(_xlfn.XLOOKUP($H67,'Customized Fuel LHV'!$B:$B,'Customized Fuel LHV'!J:J,\"No LHV\",0)=\"\",\"Factor error\",_xlfn.XLOOKUP($H67,'Customized Fuel LHV'!$B:$B,'Customized Fuel LHV'!J:J,\"No LHV\",0)),_xlfn.XLOOKUP($H67,'Customized Fuel LHV'!$B:$B,'Customized Fuel LHV'!$D:$D,\"No LHV\",0))*IF($F67=\"Customized\",\nIF(_xlfn.XLOOKUP($H67,'Customized Fuel EF'!$B:$B,'Customized Fuel EF'!J:J,\"No EF\",0)=\"\",\"Factor error\",_xlfn.XLOOKUP($H67,'Customized Fuel EF'!$B:$B,'Customized Fuel EF'!J:J,\"No EF\",0)),_xlfn.XLOOKUP($H67,'Customized Fuel EF'!$B:$B,'Customized Fuel EF'!$D:$D,\"No EF\",0))/1000,\"Factor error\")","v":0}]
[null,null,null,{"$f":"C65","v":"A3.1.1"},".2",null,null,null,null,"[t CO2e/reporting period]",{"$f":"SUM(M68:R68)","v":0},null,{"$f":"IFERROR(SUMIFS(M:M,$D:$D,$D37,$I:$I,$H68)*IF($G68=\"Customized\",\nIF(_xlfn.XLOOKUP($H68,'Customized Fuel LHV'!$B:$B,'Customized Fuel LHV'!E:E,\"No LHV\",0)=\"\",\"Factor error\",_xlfn.XLOOKUP($H68,'Customized Fuel LHV'!$B:$B,'Customized Fuel LHV'!E:E,\"No LHV\",0)),_xlfn.XLOOKUP($H68,'Customized Fuel LHV'!$B:$B,'Customized Fuel LHV'!$D:$D,\"No LHV\",0))*IF($F68=\"Customized\",\nIF(_xlfn.XLOOKUP($H68,'Customized Fuel EF'!$B:$B,'Customized Fuel EF'!E:E,\"No EF\",0)=\"\",\"Factor error\",_xlfn.XLOOKUP($H68,'Customized Fuel EF'!$B:$B,'Customized Fuel EF'!E:E,\"No EF\",0)),_xlfn.XLOOKUP($H68,'Customized Fuel EF'!$B:$B,'Customized Fuel EF'!$D:$D,\"No EF\",0))/1000,\"Factor error\")","v":0},{"$f":"IFERROR(SUMIFS(N:N,$D:$D,$D37,$I:$I,$H68)*IF($G68=\"Customized\",\nIF(_xlfn.XLOOKUP($H68,'Customized Fuel LHV'!$B:$B,'Customized Fuel LHV'!F:F,\"No LHV\",0)=\"\",\"Factor error\",_xlfn.XLOOKUP($H68,'Customized Fuel LHV'!$B:$B,'Customized Fuel LHV'!F:F,\"No LHV\",0)),_xlfn.XLOOKUP($H68,'Customized Fuel LHV'!$B:$B,'Customized Fuel LHV'!$D:$D,\"No LHV\",0))*IF($F68=\"Customized\",\nIF(_xlfn.XLOOKUP($H68,'Customized Fuel EF'!$B:$B,'Customized Fuel EF'!F:F,\"No EF\",0)=\"\",\"Factor error\",_xlfn.XLOOKUP($H68,'Customized Fuel EF'!$B:$B,'Customized Fuel EF'!F:F,\"No EF\",0)),_xlfn.XLOOKUP($H68,'Customized Fuel EF'!$B:$B,'Customized Fuel EF'!$D:$D,\"No EF\",0))/1000,\"Factor error\")","v":0},{"$f":"IFERROR(SUMIFS(O:O,$D:$D,$D37,$I:$I,$H68)*IF($G68=\"Customized\",\nIF(_xlfn.XLOOKUP($H68,'Customized Fuel LHV'!$B:$B,'Customized Fuel LHV'!G:G,\"No LHV\",0)=\"\",\"Factor error\",_xlfn.XLOOKUP($H68,'Customized Fuel LHV'!$B:$B,'Customized Fuel LHV'!G:G,\"No LHV\",0)),_xlfn.XLOOKUP($H68,'Customized Fuel LHV'!$B:$B,'Customized Fuel LHV'!$D:$D,\"No LHV\",0))*IF($F68=\"Customized\",\nIF(_xlfn.XLOOKUP($H68,'Customized Fuel EF'!$B:$B,'Customized Fuel EF'!G:G,\"No EF\",0)=\"\",\"Factor error\",_xlfn.XLOOKUP($H68,'Customized Fuel EF'!$B:$B,'Customized Fuel EF'!G:G,\"No EF\",0)),_xlfn.XLOOKUP($H68,'Customized Fuel EF'!$B:$B,'Customized Fuel EF'!$D:$D,\"No EF\",0))/1000,\"Factor error\")","v":0},{"$f":"IFERROR(SUMIFS(P:P,$D:$D,$D37,$I:$I,$H68)*IF($G68=\"Customized\",\nIF(_xlfn.XLOOKUP($H68,'Customized Fuel LHV'!$B:$B,'Customized Fuel LHV'!H:H,\"No LHV\",0)=\"\",\"Factor error\",_xlfn.XLOOKUP($H68,'Customized Fuel LHV'!$B:$B,'Customized Fuel LHV'!H:H,\"No LHV\",0)),_xlfn.XLOOKUP($H68,'Customized Fuel LHV'!$B:$B,'Customized Fuel LHV'!$D:$D,\"No LHV\",0))*IF($F68=\"Customized\",\nIF(_xlfn.XLOOKUP($H68,'Customized Fuel EF'!$B:$B,'Customized Fuel EF'!H:H,\"No EF\",0)=\"\",\"Factor error\",_xlfn.XLOOKUP($H68,'Customized Fuel EF'!$B:$B,'Customized Fuel EF'!H:H,\"No EF\",0)),_xlfn.XLOOKUP($H68,'Customized Fuel EF'!$B:$B,'Customized Fuel EF'!$D:$D,\"No EF\",0))/1000,\"Factor error\")","v":0},{"$f":"IFERROR(SUMIFS(Q:Q,$D:$D,$D37,$I:$I,$H68)*IF($G68=\"Customized\",\nIF(_xlfn.XLOOKUP($H68,'Customized Fuel LHV'!$B:$B,'Customized Fuel LHV'!I:I,\"No LHV\",0)=\"\",\"Factor error\",_xlfn.XLOOKUP($H68,'Customized Fuel LHV'!$B:$B,'Customized Fuel LHV'!I:I,\"No LHV\",0)),_xlfn.XLOOKUP($H68,'Customized Fuel LHV'!$B:$B,'Customized Fuel LHV'!$D:$D,\"No LHV\",0))*IF($F68=\"Customized\",\nIF(_xlfn.XLOOKUP($H68,'Customized Fuel EF'!$B:$B,'Customized Fuel EF'!I:I,\"No EF\",0)=\"\",\"Factor error\",_xlfn.XLOOKUP($H68,'Customized Fuel EF'!$B:$B,'Customized Fuel EF'!I:I,\"No EF\",0)),_xlfn.XLOOKUP($H68,'Customized Fuel EF'!$B:$B,'Customized Fuel EF'!$D:$D,\"No EF\",0))/1000,\"Factor error\")","v":0},{"$f":"IFERROR(SUMIFS(R:R,$D:$D,$D37,$I:$I,$H68)*IF($G68=\"Customized\",\nIF(_xlfn.XLOOKUP($H68,'Customized Fuel LHV'!$B:$B,'Customized Fuel LHV'!J:J,\"No LHV\",0)=\"\",\"Factor error\",_xlfn.XLOOKUP($H68,'Customized Fuel LHV'!$B:$B,'Customized Fuel LHV'!J:J,\"No LHV\",0)),_xlfn.XLOOKUP($H68,'Customized Fuel LHV'!$B:$B,'Customized Fuel LHV'!$D:$D,\"No LHV\",0))*IF($F68=\"Customized\",\nIF(_xlfn.XLOOKUP($H68,'Customized Fuel EF'!$B:$B,'Customized Fuel EF'!J:J,\"No EF\",0)=\"\",\"Factor error\",_xlfn.XLOOKUP($H68,'Customized Fuel EF'!$B:$B,'Customized Fuel EF'!J:J,\"No EF\",0)),_xlfn.XLOOKUP($H68,'Customized Fuel EF'!$B:$B,'Customized Fuel EF'!$D:$D,\"No EF\",0))/1000,\"Factor error\")","v":0}]
[null,null,"A3.1.2",null,null,null,null,"CO2e from on-site power generation","CO2e from on-site power generation","[t CO2e/reporting period]",{"$f":"SUM(M69:R69)","v":0},null,{"$f":"SUMIF($D:$D,$C69,M:M)","v":0},0,0,0,0,0]
[null,null,null,null,null,"Adopting CO2e Factors ","Adopting LHV Factors ","[Please insert additional rows if more energy commodities are included]"]
[null,null,null,{"$f":"C69","v":"A3.1.2"},".1",null,null,null,null,"[t CO2e/reporting period]",{"$f":"SUM(M71:R71)","v":0},null,{"$f":"IFERROR((SUMIFS(M:M,$D:$D,$D39,$I:$I,$H71)*IF($G71=\"Customized\",\nIF(_xlfn.XLOOKUP($H71,'Customized Fuel LHV'!$B:$B,'Customized Fuel LHV'!E:E,\"No LHV\",0)=\"\",\"Factor error\",_xlfn.XLOOKUP($H71,'Customized Fuel LHV'!$B:$B,'Customized Fuel LHV'!E:E,\"No LHV\",0)),_xlfn.XLOOKUP($H71,'Customized Fuel LHV'!$B:$B,'Customized Fuel LHV'!$D:$D,\"No LHV\",0)))*IF($F71=\"Customized\",\nIF(_xlfn.XLOOKUP($H71,'Customized Fuel EF'!$B:$B,'Customized Fuel EF'!E:E,\"No EF\",0)=\"\",\"Factor error\",_xlfn.XLOOKUP($H71,'Customized Fuel EF'!$B:$B,'Customized Fuel EF'!E:E,\"No EF\",0)),_xlfn.XLOOKUP($H71,'Customized Fuel EF'!$B:$B,'Customized Fuel EF'!$D:$D,\"No EF\",0))/1000,\"Factor error\")","v":0},{"$f":"IFERROR((SUMIFS(N:N,$D:$D,$D39,$I:$I,$H71)*IF($G71=\"Customized\",\nIF(_xlfn.XLOOKUP($H71,'Customized Fuel LHV'!$B:$B,'Customized Fuel LHV'!F:F,\"No LHV\",0)=\"\",\"Factor error\",_xlfn.XLOOKUP($H71,'Customized Fuel LHV'!$B:$B,'Customized Fuel LHV'!F:F,\"No LHV\",0)),_xlfn.XLOOKUP($H71,'Customized Fuel LHV'!$B:$B,'Customized Fuel LHV'!$D:$D,\"No LHV\",0)))*IF($F71=\"Customized\",\nIF(_xlfn.XLOOKUP($H71,'Customized Fuel EF'!$B:$B,'Customized Fuel EF'!F:F,\"No EF\",0)=\"\",\"Factor error\",_xlfn.XLOOKUP($H71,'Customized Fuel EF'!$B:$B,'Customized Fuel EF'!F:F,\"No EF\",0)),_xlfn.XLOOKUP($H71,'Customized Fuel EF'!$B:$B,'Customized Fuel EF'!$D:$D,\"No EF\",0))/1000,\"Factor error\")","v":0},{"$f":"IFERROR((SUMIFS(O:O,$D:$D,$D39,$I:$I,$H71)*IF($G71=\"Customized\",\nIF(_xlfn.XLOOKUP($H71,'Customized Fuel LHV'!$B:$B,'Customized Fuel LHV'!G:G,\"No LHV\",0)=\"\",\"Factor error\",_xlfn.XLOOKUP($H71,'Customized Fuel LHV'!$B:$B,'Customized Fuel LHV'!G:G,\"No LHV\",0)),_xlfn.XLOOKUP($H71,'Customized Fuel LHV'!$B:$B,'Customized Fuel LHV'!$D:$D,\"No LHV\",0)))*IF($F71=\"Customized\",\nIF(_xlfn.XLOOKUP($H71,'Customized Fuel EF'!$B:$B,'Customized Fuel EF'!G:G,\"No EF\",0)=\"\",\"Factor error\",_xlfn.XLOOKUP($H71,'Customized Fuel EF'!$B:$B,'Customized Fuel EF'!G:G,\"No EF\",0)),_xlfn.XLOOKUP($H71,'Customized Fuel EF'!$B:$B,'Customized Fuel EF'!$D:$D,\"No EF\",0))/1000,\"Factor error\")","v":0},{"$f":"IFERROR((SUMIFS(P:P,$D:$D,$D39,$I:$I,$H71)*IF($G71=\"Customized\",\nIF(_xlfn.XLOOKUP($H71,'Customized Fuel LHV'!$B:$B,'Customized Fuel LHV'!H:H,\"No LHV\",0)=\"\",\"Factor error\",_xlfn.XLOOKUP($H71,'Customized Fuel LHV'!$B:$B,'Customized Fuel LHV'!H:H,\"No LHV\",0)),_xlfn.XLOOKUP($H71,'Customized Fuel LHV'!$B:$B,'Customized Fuel LHV'!$D:$D,\"No LHV\",0)))*IF($F71=\"Customized\",\nIF(_xlfn.XLOOKUP($H71,'Customized Fuel EF'!$B:$B,'Customized Fuel EF'!H:H,\"No EF\",0)=\"\",\"Factor error\",_xlfn.XLOOKUP($H71,'Customized Fuel EF'!$B:$B,'Customized Fuel EF'!H:H,\"No EF\",0)),_xlfn.XLOOKUP($H71,'Customized Fuel EF'!$B:$B,'Customized Fuel EF'!$D:$D,\"No EF\",0))/1000,\"Factor error\")","v":0},{"$f":"IFERROR((SUMIFS(Q:Q,$D:$D,$D39,$I:$I,$H71)*IF($G71=\"Customized\",\nIF(_xlfn.XLOOKUP($H71,'Customized Fuel LHV'!$B:$B,'Customized Fuel LHV'!I:I,\"No LHV\",0)=\"\",\"Factor error\",_xlfn.XLOOKUP($H71,'Customized Fuel LHV'!$B:$B,'Customized Fuel LHV'!I:I,\"No LHV\",0)),_xlfn.XLOOKUP($H71,'Customized Fuel LHV'!$B:$B,'Customized Fuel LHV'!$D:$D,\"No LHV\",0)))*IF($F71=\"Customized\",\nIF(_xlfn.XLOOKUP($H71,'Customized Fuel EF'!$B:$B,'Customized Fuel EF'!I:I,\"No EF\",0)=\"\",\"Factor error\",_xlfn.XLOOKUP($H71,'Customized Fuel EF'!$B:$B,'Customized Fuel EF'!I:I,\"No EF\",0)),_xlfn.XLOOKUP($H71,'Customized Fuel EF'!$B:$B,'Customized Fuel EF'!$D:$D,\"No EF\",0))/1000,\"Factor error\")","v":0},{"$f":"IFERROR((SUMIFS(R:R,$D:$D,$D39,$I:$I,$H71)*IF($G71=\"Customized\",\nIF(_xlfn.XLOOKUP($H71,'Customized Fuel LHV'!$B:$B,'Customized Fuel LHV'!J:J,\"No LHV\",0)=\"\",\"Factor error\",_xlfn.XLOOKUP($H71,'Customized Fuel LHV'!$B:$B,'Customized Fuel LHV'!J:J,\"No LHV\",0)),_xlfn.XLOOKUP($H71,'Customized Fuel LHV'!$B:$B,'Customized Fuel LHV'!$D:$D,\"No LHV\",0)))*IF($F71=\"Customized\",\nIF(_xlfn.XLOOKUP($H71,'Customized Fuel EF'!$B:$B,'Customized Fuel EF'!J:J,\"No EF\",0)=\"\",\"Factor error\",_xlfn.XLOOKUP($H71,'Customized Fuel EF'!$B:$B,'Customized Fuel EF'!J:J,\"No EF\",0)),_xlfn.XLOOKUP($H71,'Customized Fuel EF'!$B:$B,'Customized Fuel EF'!$D:$D,\"No EF\",0))/1000,\"Factor error\")","v":0}]
[null,null,null,{"$f":"C69","v":"A3.1.2"},".2",null,null,null,null,"[t CO2e/reporting period]",{"$f":"SUM(M72:R72)","v":0},null,{"$f":"IFERROR((SUMIFS(M:M,$D:$D,$D40,$I:$I,$H72)*IF($G72=\"Customized\",\nIF(_xlfn.XLOOKUP($H72,'Customized Fuel LHV'!$B:$B,'Customized Fuel LHV'!E:E,\"No LHV\",0)=\"\",\"Factor error\",_xlfn.XLOOKUP($H72,'Customized Fuel LHV'!$B:$B,'Customized Fuel LHV'!E:E,\"No LHV\",0)),_xlfn.XLOOKUP($H72,'Customized Fuel LHV'!$B:$B,'Customized Fuel LHV'!$D:$D,\"No LHV\",0)))*IF($F72=\"Customized\",\nIF(_xlfn.XLOOKUP($H72,'Customized Fuel EF'!$B:$B,'Customized Fuel EF'!E:E,\"No EF\",0)=\"\",\"Factor error\",_xlfn.XLOOKUP($H72,'Customized Fuel EF'!$B:$B,'Customized Fuel EF'!E:E,\"No EF\",0)),_xlfn.XLOOKUP($H72,'Customized Fuel EF'!$B:$B,'Customized Fuel EF'!$D:$D,\"No EF\",0))/1000,\"Factor error\")","v":0},{"$f":"IFERROR((SUMIFS(N:N,$D:$D,$D40,$I:$I,$H72)*IF($G72=\"Customized\",\nIF(_xlfn.XLOOKUP($H72,'Customized Fuel LHV'!$B:$B,'Customized Fuel LHV'!F:F,\"No LHV\",0)=\"\",\"Factor error\",_xlfn.XLOOKUP($H72,'Customized Fuel LHV'!$B:$B,'Customized Fuel LHV'!F:F,\"No LHV\",0)),_xlfn.XLOOKUP($H72,'Customized Fuel LHV'!$B:$B,'Customized Fuel LHV'!$D:$D,\"No LHV\",0)))*IF($F72=\"Customized\",\nIF(_xlfn.XLOOKUP($H72,'Customized Fuel EF'!$B:$B,'Customized Fuel EF'!F:F,\"No EF\",0)=\"\",\"Factor error\",_xlfn.XLOOKUP($H72,'Customized Fuel EF'!$B:$B,'Customized Fuel EF'!F:F,\"No EF\",0)),_xlfn.XLOOKUP($H72,'Customized Fuel EF'!$B:$B,'Customized Fuel EF'!$D:$D,\"No EF\",0))/1000,\"Factor error\")","v":0},{"$f":"IFERROR((SUMIFS(O:O,$D:$D,$D40,$I:$I,$H72)*IF($G72=\"Customized\",\nIF(_xlfn.XLOOKUP($H72,'Customized Fuel LHV'!$B:$B,'Customized Fuel LHV'!G:G,\"No LHV\",0)=\"\",\"Factor error\",_xlfn.XLOOKUP($H72,'Customized Fuel LHV'!$B:$B,'Customized Fuel LHV'!G:G,\"No LHV\",0)),_xlfn.XLOOKUP($H72,'Customized Fuel LHV'!$B:$B,'Customized Fuel LHV'!$D:$D,\"No LHV\",0)))*IF($F72=\"Customized\",\nIF(_xlfn.XLOOKUP($H72,'Customized Fuel EF'!$B:$B,'Customized Fuel EF'!G:G,\"No EF\",0)=\"\",\"Factor error\",_xlfn.XLOOKUP($H72,'Customized Fuel EF'!$B:$B,'Customized Fuel EF'!G:G,\"No EF\",0)),_xlfn.XLOOKUP($H72,'Customized Fuel EF'!$B:$B,'Customized Fuel EF'!$D:$D,\"No EF\",0))/1000,\"Factor error\")","v":0},{"$f":"IFERROR((SUMIFS(P:P,$D:$D,$D40,$I:$I,$H72)*IF($G72=\"Customized\",\nIF(_xlfn.XLOOKUP($H72,'Customized Fuel LHV'!$B:$B,'Customized Fuel LHV'!H:H,\"No LHV\",0)=\"\",\"Factor error\",_xlfn.XLOOKUP($H72,'Customized Fuel LHV'!$B:$B,'Customized Fuel LHV'!H:H,\"No LHV\",0)),_xlfn.XLOOKUP($H72,'Customized Fuel LHV'!$B:$B,'Customized Fuel LHV'!$D:$D,\"No LHV\",0)))*IF($F72=\"Customized\",\nIF(_xlfn.XLOOKUP($H72,'Customized Fuel EF'!$B:$B,'Customized Fuel EF'!H:H,\"No EF\",0)=\"\",\"Factor error\",_xlfn.XLOOKUP($H72,'Customized Fuel EF'!$B:$B,'Customized Fuel EF'!H:H,\"No EF\",0)),_xlfn.XLOOKUP($H72,'Customized Fuel EF'!$B:$B,'Customized Fuel EF'!$D:$D,\"No EF\",0))/1000,\"Factor error\")","v":0},{"$f":"IFERROR((SUMIFS(Q:Q,$D:$D,$D40,$I:$I,$H72)*IF($G72=\"Customized\",\nIF(_xlfn.XLOOKUP($H72,'Customized Fuel LHV'!$B:$B,'Customized Fuel LHV'!I:I,\"No LHV\",0)=\"\",\"Factor error\",_xlfn.XLOOKUP($H72,'Customized Fuel LHV'!$B:$B,'Customized Fuel LHV'!I:I,\"No LHV\",0)),_xlfn.XLOOKUP($H72,'Customized Fuel LHV'!$B:$B,'Customized Fuel LHV'!$D:$D,\"No LHV\",0)))*IF($F72=\"Customized\",\nIF(_xlfn.XLOOKUP($H72,'Customized Fuel EF'!$B:$B,'Customized Fuel EF'!I:I,\"No EF\",0)=\"\",\"Factor error\",_xlfn.XLOOKUP($H72,'Customized Fuel EF'!$B:$B,'Customized Fuel EF'!I:I,\"No EF\",0)),_xlfn.XLOOKUP($H72,'Customized Fuel EF'!$B:$B,'Customized Fuel EF'!$D:$D,\"No EF\",0))/1000,\"Factor error\")","v":0},{"$f":"IFERROR((SUMIFS(R:R,$D:$D,$D40,$I:$I,$H72)*IF($G72=\"Customized\",\nIF(_xlfn.XLOOKUP($H72,'Customized Fuel LHV'!$B:$B,'Customized Fuel LHV'!J:J,\"No LHV\",0)=\"\",\"Factor error\",_xlfn.XLOOKUP($H72,'Customized Fuel LHV'!$B:$B,'Customized Fuel LHV'!J:J,\"No LHV\",0)),_xlfn.XLOOKUP($H72,'Customized Fuel LHV'!$B:$B,'Customized Fuel LHV'!$D:$D,\"No LHV\",0)))*IF($F72=\"Customized\",\nIF(_xlfn.XLOOKUP($H72,'Customized Fuel EF'!$B:$B,'Customized Fuel EF'!J:J,\"No EF\",0)=\"\",\"Factor error\",_xlfn.XLOOKUP($H72,'Customized Fuel EF'!$B:$B,'Customized Fuel EF'!J:J,\"No EF\",0)),_xlfn.XLOOKUP($H72,'Customized Fuel EF'!$B:$B,'Customized Fuel EF'!$D:$D,\"No EF\",0))/1000,\"Factor error\")","v":0}]
[null,null,"A3.1.3",null,null,"CO2e from external electricity production",null,null,null,"[t CO2e/reporting period]",{"$f":"SUM(M73:R73)","v":0},null,{"$f":"IFERROR(M42*$K$43/1000,\"\")","v":""},{"$f":"IFERROR(N42*$K$43/1000,\"\")","v":""},"","","",""]
[null,null,"A3.1.4",null,null,null,null,null,"Total CO2e in Stage A1-A3","[t CO2e/reporting period]",{"$f":"SUM(M74:R74)","v":0},null,{"$f":"SUMIFS(M:M,$C:$C,$C48)+SUMIFS(M:M,$C:$C,$C53)+SUMIFS(M:M,$C:$C,$C60)+SUMIFS(M:M,$C:$C,$C65)+SUMIFS(M:M,$C:$C,$C69)+SUMIFS(M:M,$C:$C,$C73)","v":0},0,0,0,0,0]
[null,"A4","PROJECT LIFE CYCLE STAGE: A4 OFF-SITE TRANSPORTATION OF PRODUCT to border of HK ",null,null,null,null,null,null,"unit","Total",null,"Product 1","Product 2","Product 3","Product 4","Product 5","Product 6"]
[null,null,"A4.1 CO2e EMISSIONS ",null,null,null,null,null,null,"[t CO2e/reporting period]",{"$f":"SUM(M76:R76)","v":0},null,{"$f":"SUMIF($D:$D,$C77,M:M)","v":0},0,0,0,0,0]
[null,null,"A4.1.1",null,null,"CO2e from off-site transportation of product to border of HK (excluded from assessment boundary)"]
[null,null,null,{"$f":"C77","v":"A4.1.1"},".1","CO2e calculated using either 1) WRI & WBCSD's protocol OR 2) EPD & EMSD's carbon audit tool",null,null,null,"[t CO2e/reporting period]",{"$f":"SUM(M78:R78)","v":0}]
[null,null,"A4.1.2",null,null,null,null,null,"Total CO2e in Stage A4","[t CO2e/reporting period]",{"$f":"SUM(M79:R79)","v":0},null,{"$f":"IFERROR(IF(M78=\"\",\"\",M78),\"\")","v":""},"","","","",""]
[]
[null,"P ","PERFORMANCE INDICATORS",null,null,null,null,null,null,"unit","Total",null,"Product 1","Product 2","Product 3","Product 4","Product 5","Product 6"]
[null,"P",{"$f":"LEFT($B$81,2)","v":"P "},1,null,"Gross CO2e (A1-A3)",null,null,null,"[t CO2e/reporting period]",{"$f":"IF(AND(M82:R82=\"\"),\"\",SUM(M82:R82))","v":0},null,{"$f":"SUM(M83:M83)","v":0},0,0,0,0,0]
[null,null,"P ",{"$f":"D82","v":1},".1","A1 - A3 Raw material extraction and upstream production, Off-site transportation of raw materials to manufacturing plant, & Product manufacturing and fabrication (without wastage)",null,null,null,"[t CO2e/reporting period]",{"$f":"IF(AND(M83:R83=\"\"),\"\",SUM(M83:R83))","v":0},null,{"$f":"SUMIF($I:$I,\"Total CO2e in Stage A1-A3\",M:M)","v":0},0,0,0,0,0]
[null,null,"P ",{"$f":"D83","v":1},".2","A4 Off-site transportation of product to border of HK (for reference only, excluded from assessment boundary)",null,null,null,"[t CO2e/reporting period]",{"$f":"IF(AND(M84:R84=\"\"),\"\",SUM(M84:R84))","v":0},null,{"$f":"SUMIF($I:$I,\"Total CO2e in Stage A4\",M:M)","v":0},0,0,0,0,0]
[null,null,"P ",2,null,"Specific gross CO2e per kg of precast concrete produced (A1-A3)",null,null,null,"[kg CO2e/kg precast prod]",{"$f":"IF(K82=\"\",\"\",(K82/$K$28))","v":{"$error":"#VALUE!"}},null,{"$f":"IF(M$28=0,\"n.a.\",IF(M82=\"\",\"\",(M82/M$28)))","v":"n.a."},"n.a.","n.a.","n.a.","n.a.","n.a."]
[null,null,"P ",{"$f":"D85","v":2},".1","A1 - A3 Raw material extraction and upstream production, Off-site transportation of raw materials to manufacturing plant, & Product manufacturing and fabrication (without wastage)",null,null,null,"[kg CO2e/kg precast prod]",{"$f":"IF(K83=\"\",\"\",(K83/$K$28))","v":{"$error":"#VALUE!"}},null,"n.a.","n.a.","n.a.","n.a.","n.a.","n.a."]
[null,null,"P ",{"$f":"D86","v":2},".4","A4 Off-site transportation of product to border of HK (for reference only, excluded from assessment boundary)",null,null,null,"[kg CO2e/kg precast prod]",{"$f":"IF(K84=\"\",\"\",(K84/$K$28))","v":{"$error":"#VALUE!"}},null,{"$f":"IF(M$28=0,\"n.a.\",IF(M84=\"\",\"\",(M84/M$28)))","v":"n.a."},{"$f":"IF(N$28=0,\"n.a.\",IF(N84=\"\",\"\",(N84/N$28)))","v":"n.a."},"n.a.","n.a.","n.a.","n.a."]
[null,null,"P",3,null,"Specific gross CO2e per kg of reinforcing bar produced",null,null,null,"[kg CO2e/kg rebar prod]",null,null,{"$f":"IF(SUMIFS(M:M,$D:$D,\"A1.1.1\",$F:$F,\"Reinforcing bar\")=0,\"n.a.\",SUMIFS(M:M,$D:$D,\"A1.1.1\",$F:$F,\"Reinforcing bar\")/SUMIFS(M:M,$C:$C,\"G4.\",$F:$F,\"Reinforcing bar\"))","v":"n.a."},"n.a.","n.a.","n.a.","n.a.","n.a."]
[null,null,"P",4,null,"Specific gross CO2e per m3 of concrete produced",null,null,null,"[kg CO2e/m3 con prod]",null,null,{"$f":"IF(SUMIFS(M:M,$D:$D,$C$48,$F:$F,\"Concrete\")=0,\"n.a.\",\n(SUMIFS(M:M,$D:$D,\"A1.1.1\",$F:$F,\"Concrete\")/SUMIFS(M:M,$C:$C,\"G4.\",$F:$F,\"Concrete\")*1000))","v":"n.a."},"n.a.","n.a.","n.a.","n.a.","n.a."]

{"sheet":"Customized Embodied EF","index":3,"n_rows":16,"n_cols":12,"rows_kept":16,"cut":false,"hidden":false,"merged":[[15,0,15,10],[1,4,1,11],[3,0,6,0],[7,0,13,0]]}
[]
[null,null,null,null,"Customized CO2e Emission Factors for Raw Materials"]
[null,null,null,"Default EF","Product 1","Product 2","Product 3","Product 4","Product 5","Product 6","Supporting document ","Explanation"]
["Raw material ",null,"[t CO2e/ t ]","N/A"]
[null,null,"[t CO2e/ t ]","N/A"]
[null,null,"[t CO2e/ t ]","N/A"]
[null,null,"[t CO2e/ t ]","N/A"]
["Energy Commodity","Diesel oil","[t CO2e/ t ]",0.75202760000000002,null,null,null,null,null,null,"Default value is used"]
[null,"Gasoline","[t CO2e/ t ]",0.81593523000000001,null,null,null,null,null,null,"Default value is used"]
[null,"Petrol coke","[t CO2e/ t ]",0.40262468000000001,null,null,null,null,null,null,"Default value is used"]
[null,"Natural gas","[t CO2e/ t ]",0.42316367999999999,null,null,null,null,null,null,"Default value is used"]
[null,"Waste oil","[t CO2e/ t ]",1.11683712,null,null,null,null,null,null,"Default value is used"]
[null,null,"[t CO2e/ t ]","N/A"]
[null,null,"[t CO2e/ t ]","N/A"]
[]
["Factor sheet Guide :\n1. Each material with a customized EF has its own specific EF type. Even if the applicant decides that certain products will adopt the default EF value for that material, the value must be copied and displayed in the matrix.\n2. The material name must be consistent across all sheets to ensure the Excel file functions as intended.\n3. The \"Supporting Document\" column must be completed by selecting either \"Yes\" or \"No\" if a customized factor is utilized. If the customized row is not applicable, the applicant should select \"Default value is used\". If there is no supporting document , applicant can select “No (Please explain)” and provide explanation for the missing supporting documents."]

{"sheet":"Customized Fuel EF","index":4,"n_rows":66,"n_cols":12,"rows_kept":66,"cut":false,"hidden":false,"merged":[[65,0,65,11],[1,4,1,11],[3,0,24,0],[25,0,41,0],[42,0,44,0],[45,0,49,0],[51,0,63,0]]}
[]
[null,null,null,null,"Customized CO2e Direct Emission Factors for Fuel"]
[null,null,null,"Default EF","Product 1","Product 2","Product 3","Product 4","Product 5","Product 6","Supporting document ","Explanation"]
["Crude oil and derived substances","Crude oil","[kg CO2e/ GJ ]",73.303600000000003,null,null,null,null,null,null,"Default value is used"]
[null,"Orimulsion","[kg CO2e/ GJ ]",77.003600000000006,null,null,null,null,null,null,"Default value is used"]
[null,"Natural gas liquids","[kg CO2e/ GJ ]",64.203599999999994,null,null,null,null,null,null,"Default value is used"]
[null,"Gasoline","[kg CO2e/ GJ ]",69.303600000000003,null,null,null,null,null,null,"Default value is used"]
[null,"Jet kerosene","[kg CO2e/ GJ ]",71.503600000000006,null,null,null,null,null,null,"Default value is used"]
[null,"Other kerosene","[kg CO2e/ GJ ]",71.903600000000012,null,null,null,null,null,null,"Default value is used"]
[null,"Shale oil","[kg CO2e/ GJ ]",73.303600000000003,null,null,null,null,null,null,"Default value is used"]
[null,"Diesel oil","[kg CO2e/ GJ ]",74.1036,null,null,null,null,null,null,"Default value is used"]
[null,"Residual fuel oil","[kg CO2e/ GJ ]",77.403600000000012,null,null,null,null,null,null,"Default value is used"]
[null,"Liquified petroleum gases","[kg CO2e/ GJ ]",63.101099999999995,null,null,null,null,null,null,"Default value is used"]
[null,"Ethane","[kg CO2e/ GJ ]",61.601099999999995,null,null,null,null,null,null,"Default value is used"]
[null,"Naphtha","[kg CO2e/ GJ ]",73.303600000000003,null,null,null,null,null,null,"Default value is used"]
[null,"Bitumen","[kg CO2e/ GJ ]",80.703600000000009,null,null,null,null,null,null,"Default value is used"]
[null,"Lubricants","[kg CO2e/ GJ ]",73.303600000000003,null,null,null,null,null,null,"Default value is used"]
[null,"Petrol coke","[kg CO2e/ GJ ]",97.503600000000006,null,null,null,null,null,null,"Default value is used"]
[null,"Refinery feedstocks","[kg CO2e/ GJ ]",73.303600000000003,null,null,null,null,null,null,"Default value is used"]
[null,"Refinery gas","[kg CO2e/ GJ ]",57.601099999999995,null,null,null,null,null,null,"Default value is used"]
[null,"Paraffin waxes","[kg CO2e/ GJ ]",73.303600000000003,null,null,null,null,null,null,"Default value is used"]
[null,"White spirit & SBP","[kg CO2e/ GJ ]",73.303600000000003,null,null,null,null,null,null,"Default value is used"]
[null,"Other petroleum products","[kg CO2e/ GJ ]",73.303600000000003,null,null,null,null,null,null,"Default value is used"]
[null," ","[kg CO2e/ GJ ]","N/A"]
[null," ","[kg CO2e/ GJ ]","N/A"]
["Coal and derived products","Anthracite","[kg CO2e/ GJ ]",98.302499999999995,null,null,null,null,null,null,"Default value is used"]
[null,"Coking coal","[kg CO2e/ GJ ]",94.611500000000007,null,null,null,null,null,null,"Default value is used"]
[null,"Other bituminous coal","[kg CO2e/ GJ ]",94.611500000000007,null,null,null,null,null,null,"Default value is used"]
[null,"Sub-bituminous coal","[kg CO2e/ GJ ]",96.111500000000007,null,null,null,null,null,null,"Default value is used"]
[null,"Lignite","[kg CO2e/ GJ ]",101.0115,null,null,null,null,null,null,"Default value is used"]
[null,"Oil shale and tar sands","[kg CO2e/ GJ ]",107.0115,null,null,null,null,null,null,"Default value is used"]
[null,"Brown coal briquettes","[kg CO2e/ GJ ]",97.511499999999998,null,null,null,null,null,null,"Default value is used"]
[null,"Patent fuel","[kg CO2e/ GJ ]",97.511499999999998,null,null,null,null,null,null,"Default value is used"]
[null,"Coke oven coke / lignite coke / coke breeze","[kg CO2e/ GJ ]",107.0115,null,null,null,null,null,null,"Default value is used"]
[null,"Gas coke","[kg CO2e/ GJ ]",107.00110000000001,null,null,null,null,null,null,"Default value is used"]
[null,"Coal tar","[kg CO2e/ GJ ]",80.711500000000001,null,null,null,null,null,null,"Default value is used"]
[null,"Gas works gas","[kg CO2e/ GJ ]",44.4011,null,null,null,null,null,null,"Default value is used"]
[null,"Coke oven gas","[kg CO2e/ GJ ]",44.4011,null,null,null,null,null,null,"Default value is used"]
[null,"Blast furnace gas","[kg CO2e/ GJ ]",260.00110000000001,null,null,null,null,null,null,"Default value is used"]
[null,"Oxygen steel furnace gas","[kg CO2e/ GJ ]",182.00110000000001,null,null,null,null,null,null,"Default value is used"]
[null," ","[kg CO2e/ GJ ]","N/A"]
[null," ","[kg CO2e/ GJ ]","N/A"]
["Gas","Natural gas","[kg CO2e/ GJ ]",56.101099999999995,null,null,null,null,null,null,"Default value is used"]
[null," ","[kg CO2e/ GJ ]","N/A"]
[null," ","[kg CO2e/ GJ ]","N/A"]
["Non-biomass waste","Municipal wastes (non-biomass fraction)","[kg CO2e/ GJ ]",91.733999999999995,null,null,null,null,null,null,"Default value is used"]
[null,"Industrial wastes","[kg CO2e/ GJ ]","NA",null,null,null,null,null,null,"Default value is used"]
[null,"Waste oil","[kg CO2e/ GJ ]",73.334000000000003,null,null,null,null,null,null,"Default value is used"]
[null," ","[kg CO2e/ GJ ]","N/A"]
[null," ","[kg CO2e/ GJ ]","N/A"]
["Peat","Peat","[kg CO2e/ GJ ]",106.0035,null,null,null,null,null,null,"Default value is used"]
["Biomass waste","Wood/Wood waste","[kg CO2e/ GJ ]",112.03400000000001,null,null,null,null,null,null,"Default value is used"]
[null,"Sulphite lyes (Black liquor)","[kg CO2e/ GJ ]",95.305000000000007,null,null,null,null,null,null,"Default value is used"]
[null,"Other primary solid biomass fuels","[kg CO2e/ GJ ]",100.03400000000001,null,null,null,null,null,null,"Default value is used"]
[null,"Charcoal","[kg CO2e/ GJ ]",112.20399999999999,null,null,null,null,null,null,"Default value is used"]
[null,"Biogasoline","[kg CO2e/ GJ ]",70.803600000000003,null,null,null,null,null,null,"Default value is used"]
[null,"Biodiesel","[kg CO2e/ GJ ]",70.803600000000003,null,null,null,null,null,null,"Default value is used"]
[null,"Other liquid biofuels","[kg CO2e/ GJ ]",79.6036,null,null,null,null,null,null,"Default value is used"]
[null,"Landfill gas","[kg CO2e/ GJ ]",54.601099999999995,null,null,null,null,null,null,"Default value is used"]
[null,"Sludge gas","[kg CO2e/ GJ ]",54.601099999999995,null,null,null,null,null,null,"Default value is used"]
[null,"Other biogas","[kg CO2e/ GJ ]",54.601099999999995,null,null,null,null,null,null,"Default value is used"]
[null,"Municipal wastes (biomass fraction)","[kg CO2e/ GJ ]",100.03400000000001,null,null,null,null,null,null,"Default value is used"]
[null," ","[kg CO2e/ GJ ]","N/A"]
[null," ","[kg CO2e/ GJ ]","N/A"]
[]
["Factor sheet Guide :\n1. Each energy commodity with a customized EF has its own specific EF type. Even if the applicant decides that certain products will adopt the default EF value for that energy commodity, the value must be copied and displayed in the matrix.\n2. The energy commodity name must be consistent across all sheets to ensure the Excel file functions as intended.\n3. The \"Supporting Document\" column must be completed by selecting either \"Yes\" or \"No\" if a customized factor is utilized. If the customized row is not applicable, the applicant should select \"Default value is used\". If there is no supporting document , applicant can select “No (Please explain)” and provide explanation for the missing supporting documents."]

{"sheet":"Customized Fuel LHV","index":5,"n_rows":66,"n_cols":12,"rows_kept":66,"cut":false,"hidden":false,"merged":[[65,0,65,11],[51,0,63,0],[1,4,1,11],[3,0,24,0],[25,0,41,0],[42,0,44,0],[45,0,49,0]]}
[]
[null,null,null,null,"Customized LHVs for Fuel"]
[null,null,null,"Default LHV","Product 1","Product 2","Product 3","Product 4","Product 5","Product 6","Supporting document ","Explanation"]
["Crude oil and derived substances","Crude oil","MJ/kg",42.3,null,null,null,null,null,null,"Default value is used"]
[null,"Orimulsion","MJ/kg",27.5,null,null,null,null,null,null,"Default value is used"]
[null,"Natural gas liquids","MJ/kg",44.2,null,null,null,null,null,null,"Default value is used"]
[null,"Gasoline","MJ/kg",44.3,null,null,null,null,null,null,"Default value is used"]
[null,"Jet kerosene","MJ/kg",44.1,null,null,null,null,null,null,"Default value is used"]
[null,"Other kerosene","MJ/kg",43.8,null,null,null,null,null,null,"Default value is used"]
[null,"Shale oil","MJ/kg",38.1,null,null,null,null,null,null,"Default value is used"]
[null,"Diesel oil","MJ/kg",43,null,null,null,null,null,null,"Default value is used"]
[null,"Residual fuel oil","MJ/kg",40.4,null,null,null,null,null,null,"Default value is used"]
[null,"Liquified petroleum gases","MJ/kg",47.3,null,null,null,null,null,null,"Default value is used"]
[null,"Ethane","MJ/kg",46.4,null,null,null,null,null,null,"Default value is used"]
[null,"Naphtha","MJ/kg",44.5,null,null,null,null,null,null,"Default value is used"]
[null,"Bitumen","MJ/kg",40.200000000000003,null,null,null,null,null,null,"Default value is used"]
[null,"Lubricants","MJ/kg",40.200000000000003,null,null,null,null,null,null,"Default value is used"]
[null,"Petrol coke","MJ/kg",32.5,null,null,null,null,null,null,"Default value is used"]
[null,"Refinery feedstocks","MJ/kg",43,null,null,null,null,null,null,"Default value is used"]
[null,"Refinery gas","MJ/kg",49.5,null,null,null,null,null,null,"Default value is used"]
[null,"Paraffin waxes","MJ/kg",40.200000000000003,null,null,null,null,null,null,"Default value is used"]
[null,"White spirit & SBP","MJ/kg",40.200000000000003,null,null,null,null,null,null,"Default value is used"]
[null,"Other petroleum products","MJ/kg",40.200000000000003,null,null,null,null,null,null,"Default value is used"]
[null,null,"MJ/kg","N/A"]
[null,null,"MJ/kg","N/A"]
["Coal and derived products","Anthracite","MJ/kg",26.7,null,null,null,null,null,null,"Default value is used"]
[null,"Coking coal","MJ/kg",28.2,null,null,null,null,null,null,"Default value is used"]
[null,"Other bituminous coal","MJ/kg",25.8,null,null,null,null,null,null,"Default value is used"]
[null,"Sub-bituminous coal","MJ/kg",18.899999999999999,null,null,null,null,null,null,"Default value is used"]
[null,"Lignite","MJ/kg",11.9,null,null,null,null,null,null,"Default value is used"]
[null,"Oil shale and tar sands","MJ/kg",8.9,null,null,null,null,null,null,"Default value is used"]
[null,"Brown coal briquettes","MJ/kg",20.7,null,null,null,null,null,null,"Default value is used"]
[null,"Patent fuel","MJ/kg",20.7,null,null,null,null,null,null,"Default value is used"]
[null,"Coke oven coke / lignite coke / coke breeze","MJ/kg",28.2,null,null,null,null,null,null,"Default value is used"]
[null,"Gas coke","MJ/kg",28.2,null,null,null,null,null,null,"Default value is used"]
[null,"Coal tar","MJ/kg",28,null,null,null,null,null,null,"Default value is used"]
[null,"Gas works gas","MJ/kg",38.700000000000003,null,null,null,null,null,null,"Default value is used"]
[null,"Coke oven gas","MJ/kg",38.700000000000003,null,null,null,null,null,null,"Default value is used"]
[null,"Blast furnace gas","MJ/kg",2.4700000000000002,null,null,null,null,null,null,"Default value is used"]
[null,"Oxygen steel furnace gas","MJ/kg",7.06,null,null,null,null,null,null,"Default value is used"]
[null,null,"MJ/kg","N/A"]
[null,null,"MJ/kg","N/A"]
["Gas","Natural gas","MJ/kg",48,null,null,null,null,null,null,"Default value is used"]
[null,{"$f":"'Customized Fuel EF'!B44","v":" "},"MJ/kg","N/A"]
[null,{"$f":"'Customized Fuel EF'!B45","v":" "},"MJ/kg","N/A"]
["Non-biomass waste","Municipal wastes (non-biomass fraction)","MJ/kg",10,null,null,null,null,null,null,"Default value is used"]
[null,"Industrial wastes","MJ/kg","NA",null,null,null,null,null,null,"Default value is used"]
[null,"Waste oil","MJ/kg",40.200000000000003,null,null,null,null,null,null,"Default value is used"]
[null,{"$f":"'Customized Fuel EF'!B49","v":" "},"MJ/kg","N/A"]
[null,null,"MJ/kg","N/A"]
["Peat","Peat","MJ/kg",9.76,null,null,null,null,null,null,"Default value is used"]
["Biomass waste","Wood/Wood waste","MJ/kg",15.6,null,null,null,null,null,null,"Default value is used"]
[null,"Sulphite lyes (Black liquor)","MJ/kg",11.8,null,null,null,null,null,null,"Default value is used"]
[null,"Other primary solid biomass fuels","MJ/kg",11.6,null,null,null,null,null,null,"Default value is used"]
[null,"Charcoal","MJ/kg",29.5,null,null,null,null,null,null,"Default value is used"]
[null,"Biogasoline","MJ/kg",27,null,null,null,null,null,null,"Default value is used"]
[null,"Biodiesel","MJ/kg",27,null,null,null,null,null,null,"Default value is used"]
[null,"Other liquid biofuels","MJ/kg",27.4,null,null,null,null,null,null,"Default value is used"]
[null,"Landfill gas","MJ/kg",50.4,null,null,null,null,null,null,"Default value is used"]
[null,"Sludge gas","MJ/kg",50.4,null,null,null,null,null,null,"Default value is used"]
[null,"Other biogas","MJ/kg",50.4,null,null,null,null,null,null,"Default value is used"]
[null,"Municipal wastes (biomass fraction)","MJ/kg",11.6,null,null,null,null,null,null,"Default value is used"]
[null,null,"MJ/kg","N/A"]
[null,null,"MJ/kg","N/A"]
[]
["Factor sheet Guide :\n1. Each energy commodity with a customized LHV has its own specific LHV type. Even if the applicant decides that certain products will adopt the default LHV value for that energy commodity, the value must be copied and displayed in the matrix.\n2. The energy commodity name must be consistent across all sheets to ensure the Excel file functions as intended.\n3. The \"Supporting Document\" column must be completed by selecting either \"Yes\" or \"No\" if a customized factor is utilized. If the customized row is not applicable, the applicant should select \"Default value is used\". If there is no supporting document , applicant can select “No (Please explain)” and provide explanation for the missing supporting documents."]

{"sheet":"Default EF&LHV References ","index":6,"n_rows":27,"n_cols":3,"rows_kept":27,"cut":false,"hidden":false,"merged":[[6,0,6,2],[17,0,17,2],[0,0,0,1],[1,0,1,2]]}
["Date of latest update",null,"2025-03-24"]
["Default CO2e Emission Factors for Raw Materials"]
["Item","Category","References"]
["/","Raw materials","N/A"]
["/","Energy commodity","UK Department for Energy Security and Net Zero (2024). Greenhouse gas reporting: conversion factors 2024."]
[]
["Default  CO2e Direct Emission Factors for Fuel"]
["Item","Category","References"]
["/","Common Process Materials","Volume 2 Chapter 2, Table 2.3 of IPCC 2006 Guideline for National Greenhous Gas Inventories."]
["/","Coke-oven byproducts transferred offsite","Volume 2 Chapter 2, Table 2.3 of IPCC 2006 Guideline for National Greenhous Gas Inventories."]
["/","Crude oil and derived substances","Volume 2 Chapter 2, Table 2.3 of IPCC 2006 Guideline for National Greenhous Gas Inventories."]
["/","Coal and derived products","Volume 2 Chapter 2, Table 2.3 of IPCC 2006 Guideline for National Greenhous Gas Inventories."]
["/","Gas","Volume 2 Chapter 2, Table 2.3 of IPCC 2006 Guideline for National Greenhous Gas Inventories."]
["/","Non-biomass waste","Volume 2 Chapter 2, Table 2.3 of IPCC 2006 Guideline for National Greenhous Gas Inventories."]
["/","Peat","Volume 2 Chapter 2, Table 2.3 of IPCC 2006 Guideline for National Greenhous Gas Inventories."]
["/","Biomass waste","Volume 2 Chapter 2, Table 2.3 of IPCC 2006 Guideline for National Greenhous Gas Inventories."]
[]
["Default  LHVs for Fuel"]
["Item","Category","References"]
["/","Common Process Materials","Volume 2 Chapter 1, Tables 1.2 of IPCC 2006 Guideline for National Greenhous Gas Inventories."]
["/","Coke-oven byproducts transferred offsite","Volume 2 Chapter 1, Tables 1.2 of IPCC 2006 Guideline for National Greenhous Gas Inventories."]
["/","Crude oil and derived substances","Volume 2 Chapter 1, Tables 1.2 of IPCC 2006 Guideline for National Greenhous Gas Inventories."]
["/","Coal and derived products","Volume 2 Chapter 1, Tables 1.2 of IPCC 2006 Guideline for National Greenhous Gas Inventories."]
["/","Gas","Volume 2 Chapter 1, Tables 1.2 of IPCC 2006 Guideline for National Greenhous Gas Inventories."]
["/","Non-biomass waste","Volume 2 Chapter 1, Tables 1.2 of IPCC 2006 Guideline for National Greenhous Gas Inventories."]
["/","Peat","Volume 2 Chapter 1, Tables 1.2 of IPCC 2006 Guideline for National Greenhous Gas Inventories."]
["/","Biomass waste","Volume 2 Chapter 1, Tables 1.2 of IPCC 2006 Guideline for National Greenhous Gas Inventories."]